{"text_format":"1","workbook":"xlsx","n_sheets":8,"sheets":["Kalkulátor","KalkLap","Minősítés","BaseData","Kalk","Indikativ","IndikatívOTK","Induló lap"],"not_rendered":{"charts":0,"images":7,"macros":1,"external_links":1,"defined_names":74,"comments":1,"pivot_tables":0},"unopened":[],"bounds":{"document_bytes":16777216,"sheet_cells":100000,"rows_first":2000,"rows_last":500,"rows_between":2000,"halvings":0,"cell_chars":16384,"cell_head_chars":4096},"cells_cut":0,"cells_raw":0,"read":"whole","date_system":"1900"}

{"sheet":"Kalkulátor","index":0,"n_rows":31,"n_cols":10,"rows_kept":31,"cut":false,"hidden":false,"merged":[[27,1,27,2],[23,1,23,2],[17,5,17,10],[11,5,11,11],[14,5,14,11],[13,5,13,11],[7,8,9,12],[0,9,1,12],[4,9,5,12],[1,1,1,2],[16,1,16,2],[0,5,0,6],[1,5,1,6],[2,5,2,6],[3,5,3,6],[4,5,4,6],[10,1,10,2],[5,5,5,6],[8,1,8,3],[12,5,12,10],[0,2,0,3],[6,5,6,11]]}
[null,"Ajánlatkészítő neve",null,null,null,{"$f":"IF(ISBLANK(C3),BaseData!$D$2,INDEX(BaseData!$D$2:$D$13,MATCH(Kalkulátor!C3,BaseData!$A$2:$A$13,0)))","v":" "},null,{"$f":"IF(ISBLANK(C3),Bubor,INDEX(Minősítés!$B$25:$M$25,MATCH(Kalkulátor!C3,Minősítés!$B$9:$M$9,0)))","v":1.21E-2}]
[null,"Termék:",null,null,null,{"$f":"IF(ISBLANK(C3),BaseData!$E$2,IF(INDEX(BaseData!$E$2:$E$13,MATCH(Kalkulátor!C3,BaseData!$A$2:$A$13,0))=\" \",\" \",INDEX(BaseData!$E$2:$E$13,MATCH(Kalkulátor!C3,BaseData!$A$2:$A$13,0))))","v":" "},null,{"$f":"IFERROR(IF(F2=\" \",\" \",BaseKamatfelár),\"\")","v":" "}]
[null,"Termék:","MagNet Stabil Ötös Lakáshitel",null,null,"Kedvezmények összesen",null,{"$f":"KedvValue","v":0}]
[null,"Hitelcél:","használt lakás / lakóház vásárlás",null,null,"Kamatláb (évi)\n(Kedvezménnyel csökkentett)",null,{"$f":"RealKamatláb","v":4.7100000000000003E-2}]
[null,"Kölcsön összege:",5000000,null,null,"Törlesztőrészlet:",null,{"$f":"IF(Kalk!$B$35=\"Nem hitelezhető\",Kalk!$B$35,IF(ISBLANK(PProduct),\"\",IF(Kalk!N8=0,IF(Installment=0,\"\",Installment),\"\")))","v":32380.627124318158},null,"A pontosabb eredményért töltse ki a \"Havi vállalt jóváírás összege\" mezőt!"]
[null,"Futamidő (év)",20,null,null,"THM",null,{"$f":"IF(H5=\"\",\"\",IFERROR(POWER((IRR(Kalk!I1:I361,0.01)+1),12)-1,\"\"))","v":4.9125783185612004E-2}]
[null,"Folyósítási díj meghitelezésre kerül?","Nem",null,null,{"$f":"IFERROR(IF(AND(C7=\"Igen\",PProduct=\"MagNet CSOK + Lakáshitel\"),\"Ennél a terméknél a folyósítási díj nem hitelezhető meg!\",\"\"),\"\")","v":""}]
[null,"Tényleges Kölcsönösszeg",{"$f":"IF(AND(FolyYO=\"Igen\",PProduct<>\"MagNet CSOK + Lakáshitel\"),LoanAmount+FolyDij,LoanAmount)","v":5000000},null,null,null,null,null,{"$f":"IF(Kalk!$B$9>Kalk!$D$9,CONCATENATE(\"A feltüntetett kedvezmény nem vehető teljesen figyelembe\",CHAR(10),\"Maximum kedvezmény: \",TEXT(Kalk!$D$9,\"0,0%\"),\"\"))","v":false}]
[]
[]
[null,"Kedvezmények"]
[null,"Kölcsönösszeg és vállalt jóváírás utáni kedvezmény",{"$f":"Jóvirkedv","v":0},null,null,{"$f":"IFERROR(IF(AND(C13=\"Igen\",PProduct<>\"MagNet CSOK + Lakáshitel\"),CONCATENATE(B13,\":\nKözösségi hatás legalább 65%, vagy csatlakozik a Mentor-Szféra Plusz Programhoz\"),IF(AND(C13=\"Igen\",PProduct=\"MagNet CSOK + Lakáshitel\"),CONCATENATE(\"Ennél a terméknél a \",B13,\" nem vehető igénybe!\"),\"\")),\"\")","v":""}]
[null,"\"Közösségi ügyfél\" kamatkedvezmény","Nem"]
[null,"Egyedi kedvezmény",0,null,null,{"$f":"IFERROR(IF(AND(C14>0,PProduct=\"MagNet CSOK + Lakáshitel\"),\"Ennél a terméknél nincs lehetőség egyedi kedvezményre!\",\"\"),\"\")","v":""}]
[null,"Kampánykedvezményeket igénybe veszi?","Igen",null,null,{"$f":"IFERROR(IF(AND(INDEX(BaseData!F2:F13,MATCH(PProduct,BaseData!A2:A13,0))=\"No\",Kampany<>\"Nem\"),\"Ehhez a termékhez nem vehető igénybe a kampánykedvezmény!\",\"\"),\"\")","v":""}]
[]
[null,"Jövedelmi adatok"]
[null,"Havi vállalt jóváírás összege",0,null,null,{"$f":"IFERROR(IF(AND(C18=\"\",PProduct<>\"MagNet 10+10 Otthonteremtési Kamattámogatott Hitel\"),\"Írd be a vállalt jóváírást. Ha nem vállal, akkor írj be egy nullát (0)!\",IF(AND(C18=\"\",PProduct=\"MagNet 10+10 Otthonteremtési Kamattámogatott Hitel\"),\"Ennél a terméknél nincs szükség jóváírás vállalásra\",\"\")),\"\")","v":""}]
[null,"Igazolt havi nettó jövedelem összesen",0]
[null,"Levonások/letiltások összege (tartásdíj, bérelőleg stb)",0]
[null,"Már meglévő és fennmaradó hitelek törlesztő részlete összesen:",0]
[null,"Hitelkártya és folyószámlahitel keret összesen:",0]
[]
[null,"Fedezeti adatok"]
[null,"Ingatlan értéke",0]
[null,"Már meglévő és fennmaradó hitelek fennálló összege összesen:",0]
[]
[null,"Személyes adatok"]
[null,"Igénylő neve"]
[null,"Lakcím"]
[null,"Személyi igazolvány"]

{"sheet":"KalkLap","index":1,"n_rows":39,"n_cols":3,"rows_kept":39,"cut":false,"hidden":true,"merged":[[0,0,0,1],[35,0,35,2],[36,0,36,2],[25,0,25,1],[26,0,26,1],[30,0,30,1],[31,0,31,1],[32,0,32,1],[34,0,34,2],[24,0,24,1],[8,0,8,1],[9,0,9,1],[10,0,10,1],[11,0,11,1],[12,0,12,1],[15,0,15,2],[16,0,16,1],[19,0,19,2],[20,0,20,1],[22,0,22,2],[23,0,23,1],[13,0,13,1],[7,0,7,1],[1,0,1,1],[2,0,2,1],[3,0,3,1],[5,0,5,2],[6,0,6,1]]}
["Ajánlatkészítő neve",null,{"$f":"IF(Kalkulátor!C1=\"\",\"\",Kalkulátor!C1)","v":""}]
["Kölcsönigénylő neve:",null,{"$f":"IF(Name=\"\",\"\",Name)","v":""}]
["Kölcsönigénylő lakcíme:",null,{"$f":"IF(Address=\"\",\"\",Address)","v":""}]
["Kalkuláció készítésének napja:",null,{"$f":"TODAY()","v":"2020-01-30"}]
[]
["I. Kölcsönigénylő által megadott adatok:"]
["Kölcsön típusa:",null,{"$f":"IF(PProduct=\"\",\"\",PProduct)","v":"MagNet Stabil Ötös Lakáshitel"}]
["Hitel célja:",null,{"$f":"IF(Dealgoal=\"\",\"\",Dealgoal)","v":"használt lakás / lakóház vásárlás"}]
["Igényelt kölcsön összege:",null,{"$f":"IF(RealLoanAmount=\"\",\"\",RealLoanAmount)","v":5000000}]
["Futamidő:",null,{"$f":"IF(Tenor=\"\",\"\",Tenor*12)","v":240}]
["A hitelösszeg tartalmazza a folyósítási díjat? (Meghitelezett?)",null,{"$f":"IF(FolyYO=\"\",\"\",FolyYO)","v":"Nem"}]
[]
["“Közösségi ügyfél” kamatkedvezmény:",null,{"$f":"IF(KKedv=\"\",\"\",KKedv)","v":"Nem"}]
[]
[]
["II. Jövedelmi adatok"]
["Havi nettó jövedelem összesen:",null,{"$f":"IF(Income=\"\",\"\",Income-LevLet)","v":0}]
["Meglévő hitelek törlesztő részlete összesen:",null,{"$f":"IF(AND(ExistingInst=0,OD_CC=0),0,ExistingInst+(OD_CC*0.05))","v":0}]
[]
["III. Fedezeti adatok"]
["Ingatlan vételára/Vélelmezett ingatlan(ok) értéke:",null,{"$f":"IF(CollValue=\"\",\"\",CollValue)","v":0}]
[]
["IV. A kalkuláció eredménye:"]
["Minősítés eredménye:",null,{"$f":"Minosites","v":{"$error":"#NAME?"}}]
["Alapkamat:",null,{"$f":"IF(OR(PProduct=\"MagNet Lakáshitel\",PProduct=\"MagNet Új Társasházi Lakáshitel\",PProduct=\"MagNet Jelzáloghitel\"),Base_Rate,\"Nincs\")","v":"Nincs"}]
["Kamatfelár:",null,{"$f":"IF(OR(PProduct=\"MagNet Lakáshitel\",PProduct=\"MagNet Új Társasházi Lakáshitel\",PProduct=\"MagNet Jelzáloghitel\"),BaseKamatfelár,BaseKamatfelár+Base_Rate)","v":4.7100000000000003E-2}]
["Kedvezmények összesen:",null,{"$f":"KedvValue","v":0}]
[]
[null,"Havi jóváírás alapján nyújtott kamatkedvezmény:",{"$f":"Jóvirkedv","v":0}]
[null,"“Közösségi ügyfél” kamatkedvezmény:",{"$f":"Kalk!B7","v":0}]
["Kedvezménnyel csökkentett ügyleti kamat (évi):",null,{"$f":"RealKamatláb","v":4.7100000000000003E-2}]
["THM1",null,{"$f":"Kalkulátor!H6","v":4.9125783185612004E-2}]
["Törlesztőrészlet:",null,{"$f":"Installment","v":32380.627124318158}]
[]
["1A THM meghatározása az aktuális feltételek, illetve a hatályos jogszabályok figyelembevételével történt és a feltételek változása esetén mértéke módosulhat. A THM mutató értéke nem tükrözi a hitel kamatkockázatát."]
["Az itt közölt előzetes eredmény a kölcsönigénylő által megadott adatok alapján készült, nem teljeskörű és kizárólag tájékoztató jellegű, továbbá nem tekinthető a MagNet Bank konkrét, Ptk. 6:64.§-a szerinti szerződéses ajánlatának, vagy egyéb kötelezettségvállalásának. A Bank a kölcsönkérelem és kérelem befogadásához előírt dokumentumok hiánytalan benyújtását követően minden esetben a saját hitelbírálati feltételei szerint egyedi hitelbírálatot végez, amelynek eredményéről írásban értesíti a kölcsönigénylőt. "]
["Jelen Adatlapot a kölcsönigénylő kérelmére állítottuk ki, 1 (egy) eredeti példányban.  A termékre vonatkozó részletes feltételeket a Bank mindenkor hatályos, a fogyasztónak nyújtott hitel általános szerződési feltételeiről szóló Üzletszabályzata és fogyasztók részére nyújtott, igényelhető hitelek kamatairól, alkalmazott díjairól, és költségeiről szóló Hirdetménye tartalmazza. A Bank fenntartja a feltételek egyoldalú módosításának jogát."]
[]
[{"$f":"CONCATENATE(\"Kelt: Budapest, \",TEXT(TODAY(),\"éééé.hh.nn\"))","v":"Kelt: Budapest, 2020.01.30"},null,"MagNet Bank Zrt."]

{"sheet":"Minősítés","index":2,"n_rows":28,"n_cols":22,"rows_kept":28,"cut":false,"hidden":true,"merged":[[0,20,0,21],[0,11,0,13],[0,1,0,3],[0,6,0,8],[0,16,0,18]]}
["Jóváírás","Kölcsönösszeg",null,null,null,"JTM Buboros","LTV kategória",null,null,null,"JTM 5 éves","LTV kategória",null,null,null,"JTM 10 éves","LTV kategória",null,null,null,"LTV"]
[0,8000000,20000000,1000000000,null,0,0.25,0.5,10,null,0,0.25,0.5,10,null,0,0.25,0.5,10,null,0]
[100000,"A1","A2","A3",null,7.4999999999000005E-2,"A1","A2","A3",null,0.10999999990000001,"A1","A2","A3",null,0.14999999899999999,"A1","A2","A3",null,0.25,1]
[300000,"B1","B2","B3",null,0.17499999990000001,"B1","B2","B3",null,0.249999999,"B1","B2","B3",null,0.34999999900000001,"B1","B2","B3",null,0.5,2]
[500000,"C1","C2","C3",null,10,"C1","C2","C3",null,10,"C1","C2","C3",null,10,"C1","C2","C3",null,null,3]
[1000000000,"D1","D2","D3"]
[]
[]
[null,"MagNet Lakáshitel","MagNet Új Társasházi Lakáshitel","MagNet Stabil Ötös Lakáshitel","MagNet Stabil Ötös Új Társasházi Lakáshitel","MagNet Jelzáloghitel","MagNet Stabil Ötös Kiváltó hitel","MagNet Stabil Ötös Jelzáloghitel","MagNet CSOK + Lakáshitel","MagNet Stabil Tízes Lakáshitel","MagNet Stabil Tízes Új Társasházi Lakáshitel","MagNet Stabil Tízes Kiváltó hitel","MagNet Stabil Tízes Jelzáloghitel"]
["A1",4.2500000000000003E-2,4.2500000000000003E-2,3.5000000000000003E-2,3.5000000000000003E-2,5.2499999999999998E-2,0.04,4.4999999999999998E-2,0.03,3.5000000000000003E-2,3.5000000000000003E-2,0.04,4.4999999999999998E-2]
["A2",3.7499999999999999E-2,3.7499999999999999E-2,0.03,0.03,4.7500000000000001E-2,3.5000000000000003E-2,0.04,0.03,0.03,0.03,3.5000000000000003E-2,0.04]
["A3",3.2500000000000001E-2,3.2500000000000001E-2,2.5000000000000001E-2,2.5000000000000001E-2,4.2500000000000003E-2,0.03,3.5000000000000003E-2,0.03,2.5000000000000001E-2,2.5000000000000001E-2,0.03,3.5000000000000003E-2]
["B1",3.7499999999999999E-2,3.7499999999999999E-2,0.03,0.03,4.7500000000000001E-2,3.5000000000000003E-2,0.04,0.03,0.03,0.03,3.5000000000000003E-2,0.04]
["B2",3.2500000000000001E-2,3.2500000000000001E-2,2.5000000000000001E-2,2.5000000000000001E-2,4.2500000000000003E-2,0.03,3.5000000000000003E-2,0.03,2.5000000000000001E-2,2.5000000000000001E-2,0.03,3.5000000000000003E-2]
["B3",0.03,0.03,2.2499999999999999E-2,2.2499999999999999E-2,0.04,2.75E-2,3.2500000000000001E-2,0.03,2.2499999999999999E-2,2.2499999999999999E-2,2.75E-2,3.2500000000000001E-2]
["C1",3.2500000000000001E-2,3.2500000000000001E-2,2.5000000000000001E-2,2.5000000000000001E-2,4.2500000000000003E-2,0.03,3.5000000000000003E-2,0.03,2.5000000000000001E-2,2.5000000000000001E-2,0.03,3.5000000000000003E-2]
["C2",2.8000000000000001E-2,2.8000000000000001E-2,0.02,0.02,3.7999999999999999E-2,2.5499999999999998E-2,3.0499999999999999E-2,0.03,1.7000000000000001E-2,1.7000000000000001E-2,2.5499999999999998E-2,3.0499999999999999E-2]
["C3",2.6499999999999999E-2,2.6499999999999999E-2,1.9E-2,1.9E-2,3.6499999999999998E-2,2.4E-2,2.9000000000000001E-2,0.03,1.6500000000000001E-2,1.6500000000000001E-2,2.4E-2,2.9000000000000001E-2]
["D1",0.03,0.03,2.2499999999999999E-2,2.2499999999999999E-2,0.04,2.75E-2,3.2500000000000001E-2,0.03,2.2499999999999999E-2,2.2499999999999999E-2,2.75E-2,3.2500000000000001E-2]
["D2",2.6499999999999999E-2,2.6499999999999999E-2,1.7999999999999999E-2,1.7999999999999999E-2,3.6499999999999998E-2,2.4E-2,2.9000000000000001E-2,0.03,1.55E-2,1.55E-2,2.4E-2,2.9000000000000001E-2]
["D3",2.5000000000000001E-2,2.5000000000000001E-2,1.7500000000000002E-2,1.7500000000000002E-2,3.5000000000000003E-2,2.2499999999999999E-2,2.75E-2,0.03,1.4999999999999999E-2,1.4999999999999999E-2,2.2499999999999999E-2,2.75E-2]
["Minimum kamatfelár",0.02,0.02,1.4999999999999999E-2,1.4999999999999999E-2,0.02,1.4999999999999999E-2,1.4999999999999999E-2,0.03,1.4999999999999999E-2,1.4999999999999999E-2,1.4999999999999999E-2,1.4999999999999999E-2]
["Folyósítási díj %",0.01,0.01,7.4999999999999997E-3,7.4999999999999997E-3,0.01,7.4999999999999997E-3,7.4999999999999997E-3,0.01,7.4999999999999997E-3,7.4999999999999997E-3,7.4999999999999997E-3,7.4999999999999997E-3]
["Folyósítási díj max",200000,200000,150000,150000,200000,150000,150000,200000,150000,150000,150000,150000]
["Base_Rate",{"$f":"Bubor","v":2.7000000000000001E-3},{"$f":"Bubor","v":2.7000000000000001E-3},{"$f":"_5Y","v":1.21E-2},{"$f":"_5Y","v":1.21E-2},{"$f":"Bubor","v":2.7000000000000001E-3},{"$f":"_5Y","v":1.21E-2},{"$f":"_5Y","v":1.21E-2},null,{"$f":"_10Y","v":0.02},{"$f":"_10Y","v":0.02},{"$f":"_10Y","v":0.02},{"$f":"_10Y","v":0.02}]
[]
[]
["JTM"]

{"sheet":"BaseData","index":3,"n_rows":27,"n_cols":19,"rows_kept":27,"cut":false,"hidden":true,"merged":[]}
["Product","Hitelcél lista","Tenor","Alap","Kamatfelár","Kampány","Kamat","Folyósítási díj","Folyósítási díj max",400000,100000000,"FolyDíj","DealGoal_HOU","DealGoal_HQ","DealGoal_OTK","Yes_Or_No",4,4,10]
["MagNet Lakáshitel","DealGoal_HOU","Bubor_Tenor","Alapkamat (BUBOR)","Kamatfelár","Yes_Or_No",{"$f":"Kalk!B1","v":2.7000000000000001E-3},0.01,200000,0.25,0.3,{"$f":"LoanAmount*H2","v":50000},"új lakás / lakóház vásárlás","szabad felhasználás","új lakás / lakóház vásárlás","Igen",5,5,20]
["MagNet Új Társasházi Lakáshitel","DealGoal_Tars","Bubor_Tenor","Alapkamat (BUBOR)","Kamatfelár","No",{"$f":"G2","v":2.7000000000000001E-3},0.01,200000,0.25,0.3,50000,"használt lakás / lakóház vásárlás","nem lakáscélú hitel kiváltása","használt lakás / lakóház vásárlás","Nem",6,6,30]
["MagNet Stabil Ötös Lakáshitel","DealGoal_HOU","Bubor_Tenor"," "," ","Yes_Or_No"," ",7.4999999999999997E-3,150000,0.35,0.4,37500,"felújítás",null,"új társasházi lakás (MagNet projektfinanszírozás)",null,7,7]
["MagNet Stabil Ötös Új Társasházi Lakáshitel","DealGoal_Tars","Bubor_Tenor"," "," ","No"," ",7.4999999999999997E-3,150000,0.35,0.4,37500,"korszerűsítés",null,null,null,8,8]
["MagNet Jelzáloghitel","DealGoal_HQ","Bubor_Tenor","Alapkamat (BUBOR)","Kamatfelár","Yes_Or_No",{"$f":"G2","v":2.7000000000000001E-3},0.01,200000,0.25,0.3,50000,"üdülő, hétvégi ház, nyaraló vásárlás",null,null,null,9,9]
["MagNet Stabil Ötös Kiváltó hitel","DealGoal_HQ2","Bubor_Tenor"," "," ","Yes_Or_No"," ",7.4999999999999997E-3,150000,0.35,0.4,37500,"telekvásárlás",null,null,null,10,10]
["MagNet Stabil Ötös Jelzáloghitel","DealGoal_HQ1","Bubor_Tenor"," "," ","Yes_Or_No"," ",7.4999999999999997E-3,150000,0.35,0.4,37500,"lakáscélú hitel kiváltása",null,null,null,11,11]
["MagNet CSOK + Lakáshitel","DealGoal_OTK","OTK_Tenor"," "," ","Yes_Or_No"," ",0.01,200000,0.35,0.4,50000,null,null,null,null,12,12]
["MagNet Stabil Tízes Lakáshitel","DealGoal_HOU","Bubor_Tenor"," "," ","Yes_Or_No"," ",7.4999999999999997E-3,150000,0.5,0.6,37500,null,null,null,null,13,13]
["MagNet Stabil Tízes Új Társasházi Lakáshitel","DealGoal_Tars","Bubor_Tenor"," "," ","No"," ",7.4999999999999997E-3,150000,0.5,0.6,37500,null,null,null,null,14,14]
["MagNet Stabil Tízes Kiváltó hitel","DealGoal_HQ2","Bubor_Tenor"," "," ","Yes_Or_No"," ",7.4999999999999997E-3,150000,0.5,0.6,37500,null,null,null,null,15,15]
["MagNet Stabil Tízes Jelzáloghitel","DealGoal_HQ1","Bubor_Tenor"," "," ","Yes_Or_No"," ",7.4999999999999997E-3,150000,0.5,0.6,37500,null,null,null,null,16,16]
[null,null,null,null,null,null,null,null,null,null,null,null,null,null,null,null,17,17]
[null,null,null,null,null,null,null,null,null,null,null,null,null,null,null,null,18,18]
[null,null,null,null,null,null,null,null,null,null,null,null,null,null,null,null,19,19]
[null,null,null,null,null,null,null,null,null,null,null,null,null,null,null,null,20,20]
[null,null,null,null,null,null,null,null,null,null,null,null,null,null,null,null,21]
[null,null,null,null,null,null,null,null,null,null,null,null,null,null,null,null,22]
[null,null,null,null,null,null,null,null,null,null,null,null,null,null,null,null,23]
[null,null,null,null,null,null,null,null,null,null,null,null,null,null,null,null,24]
[null,null,null,null,null,null,null,null,null,null,null,null,null,null,null,null,25]
[null,null,null,null,null,null,null,null,null,null,null,null,null,null,null,null,26]
[null,null,null,null,null,null,null,null,null,null,null,null,null,null,null,null,27]
[null,null,null,null,null,null,null,null,null,null,null,null,null,null,null,null,28]
[null,null,null,null,null,null,null,null,null,null,null,null,null,null,null,null,29]
[null,null,null,null,null,null,null,null,null,null,null,null,null,null,null,null,30]

{"sheet":"Kalk","index":4,"n_rows":361,"n_cols":14,"rows_kept":361,"cut":false,"hidden":true,"merged":[]}
["Bubor",2.7000000000000001E-3,"HitelösszegKat",{"$f":"FREQUENCY(Minősítés!$A$2:$E$2,LoanAmount)","v":1},null,"Hónapok száma","Év","Nyitó tőke",{"$f":"-LoanAmount+Indulo_dijak","v":-4987400},"Havi kamat","Havi megfizetett tőke",null,"Hitelcél",{"$f":"IF(INDEX(BaseData!B2:B13,MATCH(PProduct,Product,0))=\"DealGoal_HOU\",IF(ISERROR(MATCH(Dealgoal,DealGoal_HOU,0)),\"NOK\",\"OK\"),IF(INDEX(BaseData!B2:B13,MATCH(PProduct,Product,0))=\"DealGoal_Tars\",IF(ISERROR(MATCH(Dealgoal,DealGoal_Tars,0)),\"NOK\",\"OK\"),IF(INDEX(BaseData!B2:B13,MATCH(PProduct,Product,0))=\"DealGoal_HQ\",IF(ISERROR(MATCH(Dealgoal,DealGoal_HQ,0)),\"NOK\",\"OK\"),IF(INDEX(BaseData!B2:B13,MATCH(PProduct,Product,0))=\"DealGoal_HQ1\",IF(ISERROR(MATCH(Dealgoal,DealGoal_HQ1,0)),\"NOK\",\"OK\"),IF(INDEX(BaseData!B2:B13,MATCH(PProduct,Product,0))=\"DealGoal_HQ2\",IF(ISERROR(MATCH(Dealgoal,DealGoal_HQ2,0)),\"NOK\",\"OK\"),IF(INDEX(BaseData!B2:B13,MATCH(PProduct,Product,0))=\"DealGoal_OTK\",IF(ISERROR(MATCH(Dealgoal,DealGoal_OTK,0)),\"NOK\",\"OK\"),\"\"))))))","v":"OK"}]
["AKK",1.06E-2,"Vállalt jóváírás kat",{"$f":"FREQUENCY(Minősítés!$A$2:$A$7,Jovir)","v":1},null,1,1,{"$f":"RealLoanAmount","v":5000000},{"$f":"Installment","v":32380.627124318158},{"$f":"H2*RealKamatláb/360*(365/12)","v":19897.569444444449},{"$f":"I2-J2","v":12483.057679873709},null,"Futamidő","OK"]
["AKK130",{"$f":"B2*1.3","v":1.3780000000000001E-2},"Kamatfelár kategória",{"$f":"INDEX(Minősítés!B3:D6,D2,D1)","v":"A1"},null,2,1,{"$f":"IF(F3>Tenor*12,0,H2-K2)","v":4987516.9423201261},{"$f":"IF(F3>Tenor*12,0,Installment)","v":32380.627124318158},{"$f":"IF(F3>Tenor*12,0,H3*RealKamatláb/360*(365/12))","v":19847.892943031587},{"$f":"IF(F3>Tenor*12,0,I3-J3)","v":12532.734181286571},null,"Mber","OK"]
["5Y",1.21E-2,null,null,null,3,1,4974984.2081388393,32380.627124318158,19798.018753291402,12582.608371026756,null,"Kkedv",{"$f":"IF(AND(KKedv=\"Igen\",PProduct=\"MagNet CSOK + Lakáshitel\"),\"NOK\",\"OK\")","v":"OK"}]
["10Y",0.02,null,null,null,4,1,4962401.5997678125,32380.627124318158,19747.946088520457,12632.681035797701,null,"Hkedv",{"$f":"IF(AND(EKedv>0,PProduct=\"MagNet CSOK + Lakáshitel\"),\"NOK\",\"OK\")","v":"OK"}]
["Jóvirkedv",{"$f":"IF(PProduct<>\"MagNet CSOK + Lakáshitel\",BaseKamatfelár-RealKamatfelár,0)","v":0},null,null,null,5,1,4949768.9187320145,32380.627124318158,19697.674158884591,12682.952965433567,null,"Kampány",{"$f":"IF(AND(INDEX(BaseData!F2:F13,MATCH(PProduct,BaseData!A2:A13,0))=\"No\",Kampany=\"Igen\"),\"NOK\",\"OK\")","v":"OK"}]
["Közösségikedv",{"$f":"IF(KKedv=\"Igen\",0.001,0)","v":0},null,null,null,6,1,4937085.9657665808,32380.627124318158,19647.202171406523,12733.424952911635,null,"Folyhit",{"$f":"IF(AND(FolyYO=\"Igen\",PProduct=\"MagNet CSOK + Lakáshitel\"),\"NOK\",\"OK\")","v":"OK"}]
["Egyedi kedvezmény",{"$f":"EKedv","v":0},null,null,null,7,1,4924352.5408136696,32380.627124318158,19596.52932995329,12784.097794364869,null,"Összesítve",{"$f":"COUNTIF(N1:N7,\"NOK\")","v":0}]
["Kedvezmények összesen",{"$f":"IF(PProduct<>\"MagNet CSOK + Lakáshitel\",SUM(B6:B8),0)","v":0},"MaxKevezmény",{"$f":"IF(PProduct<>\"MagNet CSOK + Lakáshitel\",BaseKamatfelár-MinKamat,0)","v":2.0000000000000004E-2},null,8,1,4911568.4430193044,32380.627124318158,19545.654835223701,12834.972289094458]
["MinKamat",{"$f":"IFERROR(INDEX(Minősítés!$B$22:$M$22,,MATCH(Kalkulátor!C3,Minősítés!$B$9:$M$9,0)),Minősítés!B22)","v":1.4999999999999999E-2},null,null,null,9,1,4898733.4707302097,32380.627124318158,19494.577884735743,12886.049239582415]
["Base_Rate",{"$f":"IFERROR(INDEX(Minősítés!$B$25:$M$25,,MATCH(Kalkulátor!C3,Minősítés!$B$9:$M$9,0)),Minősítés!B25)","v":1.21E-2},null,null,null,10,1,4885847.4214906273,32380.627124318158,19443.297672813918,12937.32945150424]
["BaseKamatfelár",{"$f":"IFERROR(INDEX(Minősítés!$B$10:$M$10,,MATCH(Kalkulátor!C3,Minősítés!$B$9:$M$9,0)),Minősítés!B10)","v":3.5000000000000003E-2},null,null,null,11,1,4872910.0920391232,32380.627124318158,19391.813390576524,12988.813733741634]
["RealKamatfelár",{"$f":"IFERROR(INDEX(Minősítés!$B$10:$M$21,MATCH($D$3,Minősítés!A10:A21,0),MATCH(Kalkulátor!C3,Minősítés!$B$9:$M$9,0)),Minősítés!B11)","v":3.5000000000000003E-2},null,null,null,12,1,4859921.2783053815,32380.627124318158,19340.124225922915,13040.502898395243]
["BaseKamatláb",{"$f":"SUM(Base_Rate,BaseKamatfelár)-KedvValue","v":4.7100000000000003E-2},null,null,null,13,2,4846880.7754069865,32380.627124318158,19288.229363520655,13092.397760797503]
["RealKamatláb",{"$f":"IF(SUM(MinKamat,Base_Rate)>SUM(BaseKamatfelár,Base_Rate)-KedvValue,SUM(Base_Rate,MinKamat),BaseKamatláb)","v":4.7100000000000003E-2},null,null,null,14,2,4833788.3776461892,32380.627124318158,19236.1279847927,13144.499139525458]
[null,null,null,null,null,15,2,4820643.8785066642,32380.627124318158,19183.819267904473,13196.807856413685]
["Törlesztőrészlet",{"$f":"IFERROR(PMT(RealKamatláb/360*(365/12),Tenor*12,-RealLoanAmount),0)","v":32380.627124318158},{"$f":"IFERROR(ROUND(PMT((RealKamatláb+TamValue)/360*(365/12),Tenor*12,-RealLoanAmount),0),0)","v":36321},null,null,16,2,4807447.0706502507,32380.627124318158,19131.302387750879,13249.32473656728]
["Fennálló törlesztő",{"$f":"SUM(ExistingInst,OD_CC*0.05)","v":0},null,null,null,17,2,4794197.7459136834,32380.627124318158,19078.57651594331,13302.050608374848]
["Folyósítási díj",{"$f":"IFERROR(IF(OR(INDEX(BaseData!$F$2:$F$13,MATCH(PProduct,Product,0))=\"No\",Kampany=\"Nem\"),MIN(LoanAmount*INDEX(BaseData!$H$2:$H$13,MATCH(PProduct,Product,0))/(1-INDEX(BaseData!$H$2:$H$13,MATCH(PProduct,Product,0))),INDEX(BaseData!$I$2:$I$13,MATCH(PProduct,Product,0))),0),0)","v":0},null,null,null,18,2,4780895.6953053083,32380.627124318158,19025.64082079658,13354.986303521579]
["Értékbecslés költsége",{"$f":"IFERROR(IF(OR(INDEX(BaseData!$F$2:$F$13,MATCH(PProduct,Product,0))=\"No\",Kampany=\"Nem\"),30000,0),0)","v":0},null,null,null,19,2,4767540.709001787,32380.627124318158,18972.494467315795,13408.132657002363]
["Tullap",{"$f":"IFERROR(IF(OR(INDEX(BaseData!$F$2:$F$13,MATCH(PProduct,Product,0))=\"No\",Kampany=\"Nem\"),5600,0),0)","v":0},null,null,null,20,2,4754132.5763447843,32380.627124318158,18919.136617183187,13461.490507134971]
["Jelzálog bejegyzési díj",12600,null,null,null,21,2,4740671.0858376492,32380.627124318158,18865.566428744896,13515.060695573262]
["Indulódíj összesen",{"$f":"SUM(B19:B22)","v":12600},null,null,null,22,2,4727156.0251420755,32380.627124318158,18811.783056997687,13568.844067320471]
[null,null,null,null,null,23,2,4713587.1810747553,32380.627124318158,18757.785653575618,13622.84147074254]
["Havonta összesen megfizetett összeg\nTörlesztő+szla.díj",{"$f":"SUM(I2:I361)+Indulo_dijak","v":7783950.5098363468},"Támogatás nélküli törlesztő - támogatott törlesztő",{"$f":"C17-Installment","v":3940.3728756818418},null,24,2,4699964.3396040127,32380.627124318158,18703.573366736666,13677.053757581492]
[null,"THM","Törlesztő",null,null,25,3,4686287.2858464308,32380.627124318158,18649.145341349285,13731.481782968873]
[null,{"$f":"IFERROR(POWER((IRR(I1:I361,0.01)+1),12)-1,0)","v":4.9125783185612004E-2},{"$f":"IFERROR(PMT(RealKamatláb/360*(365/12),Tenor*12,-RealLoanAmount),0)","v":32380.627124318158},"Normál",null,26,3,4672555.8040634617,32380.627124318158,18594.500718878939,13786.12640543922]
[{"$f":"Base_Rate+21.05%","v":0.22260000000000002},0.25130283948118337,95125.042018893277,"Elrettentő",null,27,3,4658769.6776580224,32380.627124318158,18539.638637374515,13840.988486943643]
[{"$f":"3%+TamValue","v":4.3779999999999999E-2},4.5609814939916671E-2,31467.546055994088,null,null,28,3,4644928.6891710786,32380.627124318158,18484.558231454772,13896.068892863386]
[null,null,null,null,null,29,3,4631032.620278215,32380.627124318158,18429.258632294663,13951.368492023495]
[null,null,null,null,null,30,3,4617081.2517861919,32380.627124318158,18373.738967611651,14006.888156706507]
["LTV",{"$f":"IFERROR(RealLoanAmount/(CollValue-ExistingLoan),0.4)","v":0.4},{"$f":"FREQUENCY(Minősítés!$U$2:$V$5,LTV)","v":2},null,null,31,3,4603074.3636294855,32380.627124318158,18317.99836165192,14062.628762666238]
["JTM",{"$f":"IFERROR((FennAllo+Installment)/(Income-LevLet),0)","v":0},{"$f":"IF(INDEX(BaseData!$C$2:$C$13,MATCH(PProduct,Product,0))=\"Bubor_Tenor\",FREQUENCY(Minősítés!$F$2:$F$6,Kalk!B33),IF(INDEX(BaseData!$C$2:$C$13,MATCH(PProduct,Product,0))=\"Otos_Tenor\",FREQUENCY(Minősítés!$K$2:$K$6,Kalk!B33),FREQUENCY(Minősítés!$P$2:$P$6,Kalk!B33)))","v":1},null,null,32,3,4589011.7348668193,32380.627124318158,18262.035935176606,14118.591189141553]
["Minősítés",{"$f":"INDEX(Minősítés!B3:D5,C32,C33)","v":"B1"},null,null,null,33,3,4574893.143677678,32380.627124318158,18205.850805447873,14174.776318870285]
[null,{"$f":"IF(AND(OR(AND(Income-LevLet<=400000,JTM>INDEX(BaseData!$J$2:$J$13,MATCH(PProduct,BaseData!$A$2:$A$13,0))),AND(Income-LevLet>400000,JTM>INDEX(BaseData!$K$2:$K$13,MATCH(PProduct,BaseData!$A$2:$A$13,0))),LTV>0.8),Kiváltás),\"Nem hitelezhető\",B34)","v":"B1"},null,null,null,34,3,4560718.3673588075,32380.627124318158,18149.442086215033,14231.185038103125]
["Nem kiváltás?",{"$f":"IF(OR(Dealgoal=BaseData!M8,Dealgoal=DealGoal_HQ2),FALSE,TRUE)","v":true},null,null,null,35,3,4546487.1823207047,32380.627124318158,18092.808887700558,14287.818236617601]
[null,null,null,null,null,36,3,4532199.3640840873,32380.627124318158,18035.950316586019,14344.676807732139]
[null,null,null,null,null,37,4,4517854.687276355,32380.627124318158,17978.865475998024,14401.761648320135]
[null,null,null,null,null,38,4,4503452.9256280344,32380.627124318158,17921.553465494067,14459.073658824091]
[null,null,null,null,null,39,4,4488993.8519692104,32380.627124318158,17864.013381048309,14516.613743269849]
[null,null,null,null,null,40,4,4474477.2382259406,32380.627124318158,17806.244315037333,14574.382809280825]
[null,null,null,null,null,41,4,4459902.8554166602,32380.627124318158,17748.245356225816,14632.381768092342]
[null,null,null,null,null,42,4,4445270.4736485677,32380.627124318158,17690.015589752165,14690.611534565993]
[null,null,null,null,null,43,4,4430579.862114002,32380.627124318158,17631.554097114087,14749.073027204071]
[null,null,null,null,null,44,4,4415830.7890867982,32380.627124318158,17572.859956154098,14807.76716816406]
[null,null,null,null,null,45,4,4401023.021918634,32380.627124318158,17513.932241044953,14866.694883273205]
[null,null,null,null,null,46,4,4386156.327035361,32380.627124318158,17454.770022275097,14925.857102043061]
[null,null,null,null,null,47,4,4371230.469933318,32380.627124318158,17395.372366633947,14985.254757684212]
[null,null,null,null,null,48,4,4356245.2151756333,32380.627124318158,17335.738337197199,15044.888787120959]
[null,null,null,null,null,49,5,4341200.3263885127,32380.627124318158,17275.866993312065,15104.760131006093]
[null,null,null,null,null,50,5,4326095.5662575066,32380.627124318158,17215.757390582388,15164.86973373577]
[null,null,null,null,null,51,5,4310930.6965237707,32380.627124318158,17155.4085808538,15225.218543464358]
[null,null,null,null,null,52,5,4295705.4779803064,32380.627124318158,17094.819612198717,15285.807512119442]
[null,null,null,null,null,53,5,4280419.670468187,32380.627124318158,17033.989528901351,15346.637595416807]
[null,null,null,null,null,54,5,4265073.03287277,32380.627124318158,16972.917371442647,15407.709752875511]
[null,null,null,null,null,55,5,4249665.3231198946,32380.627124318158,16911.60217648511,15469.024947833048]
[null,null,null,null,null,56,5,4234196.2981720613,32380.627124318158,16850.04297685764,15530.584147460519]
[null,null,null,null,null,57,5,4218665.7140246006,32380.627124318158,16788.238801540265,15592.388322777893]
[null,null,null,null,null,58,5,4203073.3257018225,32380.627124318158,16726.188675648817,15654.438448669342]
[null,null,null,null,null,59,5,4187418.8872531531,32380.627124318158,16663.891620419581,15716.735503898577]
[null,null,null,null,null,60,5,4171702.1517492547,32380.627124318158,16601.346653193825,15779.280471124333]
[null,null,null,null,null,61,6,4155922.8712781304,32380.627124318158,16538.552787402314,15842.074336915844]
[null,null,null,null,null,62,6,4140080.7969412147,32380.627124318158,16475.509032549744,15905.118091768414]
[null,null,null,null,null,63,6,4124175.6788494461,32380.627124318158,16412.214394199134,15968.412730119024]
[null,null,null,null,null,64,6,4108207.2661193269,32380.627124318158,16348.667873956114,16031.959250362044]
[null,null,null,null,null,65,6,4092175.3068689648,32380.627124318158,16284.868469453197,16095.758654864961]
[null,null,null,null,null,66,6,{"$f":"IF(F67>Tenor*12,0,H66-K66)","v":4076079.5482140998},{"$f":"IF(F67>Tenor*12,0,Installment)","v":32380.627124318158},{"$f":"IF(F67>Tenor*12,0,H67*RealKamatláb/360*(365/12))","v":16220.81517433396},{"$f":"IF(F67>Tenor*12,0,I67-J67)","v":16159.811949984198}]
[null,null,null,null,null,67,6,4059919.7362641157,32380.627124318158,16156.506978237167,16224.120146080992]
[null,null,null,null,null,68,6,4043695.6161180348,32380.627124318158,16091.942866780833,16288.684257537325]
[null,null,null,null,null,69,6,4027406.9318604977,32380.627124318158,16027.12182154624,16353.505302771919]
[null,null,null,null,null,70,6,4011053.4265577258,32380.627124318158,15962.042820061839,16418.584304256321]
[null,null,null,null,null,71,6,3994634.8422534694,32380.627124318158,15896.704835787161,16483.922288530997]
[null,null,null,null,null,72,6,3978150.9199649384,32380.627124318158,15831.106838096584,16549.520286221574]
[null,null,null,null,null,73,7,3961601.3996787169,32380.627124318158,15765.247792263119,16615.379332055039]
[null,null,null,null,null,74,7,3944986.020346662,32380.627124318158,15699.126659442049,16681.50046487611]
[null,null,null,null,null,75,7,3928304.5198817858,32380.627124318158,15632.742396654567,16747.884727663593]
[null,null,null,null,null,76,7,3911556.6351541225,32380.627124318158,15566.093956771319,16814.533167546841]
[null,null,null,null,null,77,7,3894742.1019865759,32380.627124318158,15499.180288495885,16881.446835822273]
[null,null,null,null,null,78,7,3877860.6551507534,32380.627124318158,15432.000336348192,16948.626787969966]
[null,null,null,null,null,79,7,3860912.0283627836,32380.627124318158,15364.55304064787,17016.07408367029]
[null,null,null,null,null,80,7,3843895.9542791131,32380.627124318158,15296.837337497542,17083.789786820616]
[null,null,null,null,null,81,7,3826812.1644922923,32380.627124318158,15228.852158766031,17151.774965552126]
[null,null,null,null,null,82,7,3809660.3895267402,32380.627124318158,15160.596432071517,17220.030692246641]
[null,null,null,null,null,83,7,3792440.3588344934,32380.627124318158,15092.06908076463,17288.55804355353]
[null,null,null,null,null,84,7,3775151.8007909399,32380.627124318158,15023.269023911447,17357.358100406709]
[null,null,null,null,null,85,8,3757794.4426905331,32380.627124318158,14954.19517627646,17426.431948041696]
[null,null,null,null,null,86,8,3740368.0107424916,32380.627124318158,14884.846448305454,17495.780676012706]
[null,null,null,null,null,87,8,3722872.2300664787,32380.627124318158,14815.221746108304,17565.405378209856]
[null,null,null,null,null,88,8,3705306.8246882688,32380.627124318158,14745.319971441753,17635.307152876405]
[null,null,null,null,null,89,8,3687671.5175353922,32380.627124318158,14675.140021692061,17705.487102626095]
[null,null,null,null,null,90,8,3669966.0304327663,32380.627124318158,14604.680789857617,17775.946334460539]
[null,null,null,null,null,91,8,3652190.0840983056,32380.627124318158,14533.941164531487,17846.685959786671]
[null,null,null,null,null,92,8,3634343.3981385189,32380.627124318158,14462.920029883879,17917.707094434278]
[null,null,null,null,null,93,8,3616425.6910440847,32380.627124318158,14391.616265644536,17989.010858673624]
[null,null,null,null,null,94,8,3598436.6801854111,32380.627124318158,14320.028747085069,18060.598377233087]
[null,null,null,null,null,95,8,3580376.0818081782,32380.627124318158,14248.156345001227,18132.470779316929]
[null,null,null,null,null,96,8,3562243.6110288613,32380.627124318158,14175.997925695063,18204.629198623094]
[null,null,null,null,null,97,9,3544038.9818302384,32380.627124318158,14103.552350957072,18277.074773361084]
[null,null,null,null,null,98,9,3525761.9070568774,32380.627124318158,14030.818478048222,18349.808646269936]
[null,null,null,null,null,99,9,3507412.0984106073,32380.627124318158,13957.795159681937,18422.831964636222]
[null,null,null,null,null,100,9,3488989.2664459711,32380.627124318158,13884.481244006,18496.145880312157]
[null,null,null,null,null,101,9,3470493.1205656589,32380.627124318158,13810.875574584383,18569.751549733774]
[null,null,null,null,null,102,9,3451923.3690159251,32380.627124318158,13736.976990379,18643.650133939158]
[null,null,null,null,null,103,9,3433279.7188819861,32380.627124318158,13662.784325731407,18717.842798586753]
[null,null,null,null,null,104,9,3414561.8760833992,32380.627124318158,13588.29641034439,18792.330713973766]
[null,null,null,null,null,105,9,3395769.5453694253,32380.627124318158,13513.512069263537,18867.115055054623]
[null,null,null,null,null,106,9,3376902.4303143709,32380.627124318158,13438.430122858683,18942.197001459477]
[null,null,null,null,null,107,9,3357960.2333129114,32380.627124318158,13363.049386805305,19017.577737512853]
[null,null,null,null,null,108,9,3338942.6555753984,32380.627124318158,13287.36867206585,19093.25845225231]
[null,null,null,null,null,109,10,3319849.3971231459,32380.627124318158,13211.386784870965,19169.240339447191]
[null,null,null,null,null,110,10,3300680.1567836986,32380.627124318158,13135.102526700686,19245.52459761747]
[null,null,null,null,null,111,10,3281434.6321860813,32380.627124318158,13058.514694265514,19322.112430052643]
[null,null,null,null,null,112,10,3262112.5197560284,32380.627124318158,12981.622079487446,19399.005044830712]
[null,null,null,null,null,113,10,3242713.5147111979,32380.627124318158,12904.423469480917,19476.203654837242]
[null,null,null,null,null,114,10,3223237.3110563606,32380.627124318158,12826.917646533664,19553.709477784494]
[null,null,null,null,null,115,10,3203683.601578576,32380.627124318158,12749.103388087522,19631.523736230636]
[null,null,null,null,null,116,10,3184052.0778423455,32380.627124318158,12670.979466719142,19709.647657599016]
[null,null,null,null,null,117,10,3164342.4301847466,32380.627124318158,12592.544650120621,19788.082474197538]
[null,null,null,null,null,118,10,3144554.3477105489,32380.627124318158,12513.79770108007,19866.829423238087]
[null,null,null,null,null,119,10,3124687.5182873108,32380.627124318158,12434.737377462108,19945.88974685605]
[null,null,null,null,null,120,10,3104741.6285404549,32380.627124318158,12355.362432188249,20025.264692129909]
[null,null,null,null,null,121,11,3084716.3638483249,32380.627124318158,12275.671613217242,20104.955511100918]
[null,null,null,null,null,122,11,3064611.4083372238,32380.627124318158,12195.663663525322,20184.963460792838]
[null,null,null,null,null,123,11,3044426.444876431,32380.627124318158,12115.337321086381,20265.289803231775]
[null,null,null,null,null,124,11,3024161.1550731994,32380.627124318158,12034.691318852065,20345.935805466092]
[null,null,null,null,null,125,11,3003815.2192677334,32380.627124318158,11953.72438473177,20426.902739586389]
[null,null,null,null,null,126,11,2983388.3165281471,32380.627124318158,11872.435241572603,20508.191882745556]
[null,null,null,null,null,127,11,2962880.1246454017,32380.627124318158,11790.822607139222,20589.804517178934]
[null,null,null,null,null,128,11,2942290.3201282229,32380.627124318158,11708.8851940936,20671.741930224558]
[null,null,null,null,null,129,11,2921618.5781979985,32380.627124318158,11626.621709974745,20754.005414343414]
[null,null,null,null,null,130,11,{"$f":"IF(F131>Tenor*12,0,H130-K130)","v":2900864.572783655},{"$f":"IF(F131>Tenor*12,0,Installment)","v":32380.627124318158},{"$f":"IF(F131>Tenor*12,0,H131*RealKamatláb/360*(365/12))","v":11544.030857178292},{"$f":"IF(F131>Tenor*12,0,I131-J131)","v":20836.596267139867}]
[null,null,null,null,null,131,11,2880027.976516515,32380.627124318158,11461.111332936036,20919.515791382124]
[null,null,null,null,null,132,11,2859108.4607251328,32380.627124318158,11377.861829295398,21002.76529502276]
[null,null,null,null,null,133,12,2838105.6954301102,32380.627124318158,11294.281033098783,21086.346091219377]
[null,null,null,null,null,134,12,2817019.349338891,32380.627124318158,11210.367625962859,21170.259498355299]
[null,null,null,null,null,135,12,2795849.0898405355,32380.627124318158,11126.120284257773,21254.506840060385]
[null,null,null,null,null,136,12,2774594.5830004751,32380.627124318158,11041.537679086267,21339.08944523189]
[null,null,null,null,null,137,12,2753255.4935552431,32380.627124318158,10956.618476262724,21424.008648055435]
[null,null,null,null,null,138,12,2731831.4849071875,32380.627124318158,10871.36133629211,21509.265788026049]
[null,null,null,null,null,139,12,2710322.2191191614,32380.627124318158,10785.764914348858,21594.862209969302]
[null,null,null,null,null,140,12,2688727.3569091922,32380.627124318158,10699.827860255644,21680.799264062516]
[null,null,null,null,null,141,12,2667046.5576451295,32380.627124318158,10613.548818462094,21767.078305856063]
[null,null,null,null,null,142,12,2645279.4793392736,32380.627124318158,10526.926428023409,21853.700696294749]
[null,null,null,null,null,143,12,2623425.778642979,32380.627124318158,10439.959322578883,21940.667801739277]
[null,null,null,null,null,144,12,2601485.1108412398,32380.627124318158,10352.646130330366,22027.980993987792]
[null,null,null,null,null,145,13,2579457.1298472518,32380.627124318158,10264.98547402061,22115.641650297548]
[null,null,null,null,null,146,13,2557341.4881969541,32380.627124318158,10176.975970911561,22203.651153406598]
[null,null,null,null,null,147,13,2535137.8370435475,32380.627124318158,10088.616232762535,22292.010891555623]
[null,null,null,null,null,148,13,2512845.8261519917,32380.627124318158,9999.9048658083248,22380.722258509835]
[null,null,null,null,null,149,13,2490465.1038934821,32380.627124318158,9910.8404707372229,22469.786653580937]
[null,null,null,null,null,150,13,2467995.3172399011,32380.627124318158,9821.4216426689272,22559.205481649231]
[null,null,null,null,null,151,13,2445436.1117582517,32380.627124318158,9731.6469711324044,22648.980153185752]
[null,null,null,null,null,152,13,2422787.1316050659,32380.627124318158,9641.5150400436323,22739.112084274526]
[null,null,null,null,null,153,13,2400048.0195207912,32380.627124318158,9551.02442768326,22829.602696634898]
[null,null,null,null,null,154,13,2377218.4168241564,32380.627124318158,9460.173706674188,22920.45341764397]
[null,null,null,null,null,155,13,2354297.9634065125,32380.627124318158,9368.9614439590423,23011.665680359118]
[null,null,null,null,null,156,13,2331286.2977261534,32380.627124318158,9277.3862007775861,23103.240923540572]
[null,null,null,null,null,157,14,2308183.0568026127,32380.627124318158,9185.4465326440095,23195.18059167415]
[null,null,null,null,null,158,14,2284987.8762109387,32380.627124318158,9093.1409893241562,23287.486134994004]
[null,null,null,null,null,159,14,2261700.3900759448,32380.627124318158,9000.4681148126419,23380.159009505514]
[null,null,null,null,null,160,14,2238320.2310664393,32380.627124318158,8907.4264473098829,23473.200677008273]
[null,null,null,null,null,161,14,2214847.0303894309,32380.627124318158,8814.0145191990523,23566.612605119106]
[null,null,null,null,null,162,14,2191280.4177843118,32380.627124318158,8720.2308570229161,23660.39626729524]
[null,null,null,null,null,163,14,2167620.0215170165,32380.627124318158,8626.0739814605986,23754.55314285756]
[null,null,null,null,null,164,14,2143865.4683741587,32380.627124318158,8531.5424073042486,23849.08471701391]
[null,null,null,null,null,165,14,2120016.3836571448,32380.627124318158,8436.6346434356055,23943.992480882553]
[null,null,null,null,null,166,14,2096072.3911762624,32380.627124318158,8341.3491928024814,24039.277931515677]
[null,null,null,null,null,167,14,2072033.1132447468,32380.627124318158,8245.6845523951542,24134.942571923006]
[null,null,null,null,null,168,14,2047898.1706728239,32380.627124318158,8149.639213222652,24230.987911095508]
[null,null,null,null,null,169,15,2023667.1827617283,32380.627124318158,8053.2116602889482,24327.415464029211]
[null,null,null,null,null,170,15,1999339.7672976991,32380.627124318158,7956.4003725690736,24424.226751749084]
[null,null,null,null,null,171,15,1974915.5405459499,32380.627124318158,7859.2038229851159,24521.423301333041]
[null,null,null,null,null,172,15,1950394.1172446168,32380.627124318158,7761.6204783821377,24619.006645936021]
[null,null,null,null,null,173,15,1925775.1105986808,32380.627124318158,7663.6487995039879,24716.978324814168]
[null,null,null,null,null,174,15,1901058.1322738666,32380.627124318158,7565.2872409690235,24815.339883349134]
[null,null,null,null,null,175,15,1876242.7923905174,32380.627124318158,7466.5342512457373,24914.092873072419]
[null,null,null,null,null,176,15,1851328.6995174449,32380.627124318158,7367.3882726282773,25013.238851689879]
[null,null,null,null,null,177,15,1826315.460665755,32380.627124318158,7267.8477412118818,25112.779383106277]
[null,null,null,null,null,178,15,1801202.6812826486,32380.627124318158,7167.9110868682083,25212.716037449951]
[null,null,null,null,null,179,15,1775989.9652451987,32380.627124318158,7067.5767332205642,25313.050391097593]
[null,null,null,null,null,180,15,1750676.9148541011,32380.627124318158,6966.8430976190466,25413.784026699112]
[null,null,null,null,null,181,16,1725263.130827402,32380.627124318158,6865.7085911155755,25514.918533202581]
[null,null,null,null,null,182,16,1699748.2122941995,32380.627124318158,6764.171618438827,25616.45550587933]
[null,null,null,null,null,183,16,1674131.7567883201,32380.627124318158,6662.230577969076,25718.396546349082]
[null,null,null,null,null,184,16,1648413.360241971,32380.627124318158,6559.8838617129277,25820.743262605232]
[null,null,null,null,null,185,16,1622592.6169793657,32380.627124318158,6457.1298552779563,25923.497269040203]
[null,null,null,null,null,186,16,1596669.1197103255,32380.627124318158,6353.9669378472372,26026.660186470923]
[null,null,null,null,null,187,16,1570642.4595238545,32380.627124318158,6250.393482153785,26130.233642164374]
[null,null,null,null,null,188,16,1544512.2258816902,32380.627124318158,6146.4078544548793,26234.219269863279]
[null,null,null,null,null,189,16,1518278.0066118268,32380.627124318158,6042.0084145063011,26338.618709811857]
[null,null,null,null,null,190,16,1491939.3879020149,32380.627124318158,5937.1935155364563,26443.433608781703]
[null,null,null,null,null,191,16,1465495.9542932331,32380.627124318158,5831.9615042203986,26548.66562009776]
[null,null,null,null,null,192,16,1438947.2886731355,32380.627124318158,5726.3107206537534,26654.316403664405]
[null,null,null,null,null,193,17,1412292.972269471,32380.627124318158,5620.2394983265312,26760.387625991629]
[null,null,null,null,null,194,17,{"$f":"IF(F195>Tenor*12,0,H194-K194)","v":1385532.5846434794},{"$f":"IF(F195>Tenor*12,0,Installment)","v":32380.627124318158},{"$f":"IF(F195>Tenor*12,0,H195*RealKamatláb/360*(365/12))","v":5513.7461640968468},{"$f":"IF(F195>Tenor*12,0,I195-J195)","v":26866.880960221311}]
[null,null,null,null,null,195,17,1358665.703683258,32380.627124318158,5406.829038164522,26973.798086153634]
[null,null,null,null,null,196,17,1331691.9055971045,32380.627124318158,5299.4864340445893,27081.140690273569]
[null,null,null,null,null,197,17,1304610.7649068309,32380.627124318158,5191.7166585406912,27188.910465777466]
[null,null,null,null,null,198,17,1277421.8544410535,32380.627124318158,5083.5180117183736,27297.109112599785]
[null,null,null,null,null,199,17,1250124.7453284536,32380.627124318158,4974.8887868782667,27405.738337439892]
[null,null,null,null,null,200,17,1222719.0069910137,32380.627124318158,4865.8272705291702,27514.799853788987]
[null,null,null,null,null,201,17,1195204.2071372247,32380.627124318158,4756.3317423610188,27624.295381957141]
[null,null,null,null,null,202,17,1167579.9117552675,32380.627124318158,4646.4004752177507,27734.226649100408]
[null,null,null,null,null,203,17,1139845.6851061671,32380.627124318158,4536.0317350700634,27844.595389248094]
[null,null,null,null,null,204,17,1112001.089716919,32380.627124318158,4425.2237809880589,27955.403343330101]
[null,null,null,null,null,205,18,1084045.6863735889,32380.627124318158,4313.9748651137861,28066.652259204373]
[null,null,null,null,null,206,18,1055979.0341143846,32380.627124318158,4202.2832326336675,28178.34389168449]
[null,null,null,null,null,207,18,1027800.6902227001,32380.627124318158,4090.147121750822,28290.480002567336]
[null,null,null,null,null,208,18,999510.21022013284,32380.627124318158,3977.5647636572717,28403.062360660886]
[null,null,null,null,null,209,18,971107.14785947197,32380.627124318158,3864.5343825060449,28516.092741812114]
[null,null,null,null,null,210,18,942591.05511765985,32380.627124318158,3751.0541953831598,28629.572928934998]
[null,null,null,null,null,211,18,913961.48218872491,32380.627124318158,3637.1224122795061,28743.504712038652]
[null,null,null,null,null,212,18,885217.97747668624,32380.627124318158,3522.737236062605,28857.889888255551]
[null,null,null,null,null,213,18,856360.08758843073,32380.627124318158,3407.8968624482659,28972.730261869892]
[null,null,null,null,null,214,18,827387.35732656089,32380.627124318158,3292.5994799721229,29088.027644346035]
[null,null,null,null,null,215,18,798299.32968221488,32380.627124318158,3176.8432699610639,29203.783854357094]
[null,null,null,null,null,216,18,769095.5458278578,32380.627124318158,3060.6264065045411,29320.000717813618]
[null,null,null,null,null,217,19,739775.54511004419,32380.627124318158,2943.9470564257699,29436.68006789239]
[null,null,null,null,null,218,19,710338.86504215177,32380.627124318158,2826.8033792528136,29553.823745065343]
[null,null,null,null,null,219,19,680785.0412970864,32380.627124318158,2709.1935271895513,29671.433597128605]
[null,null,null,null,null,220,19,651113.60769995779,32380.627124318158,2591.1156450865337,29789.511479231624]
[null,null,null,null,null,221,19,621324.09622072615,32380.627124318158,2472.5678704117163,29908.059253906442]
[null,null,null,null,null,222,19,591416.03696681967,32380.627124318158,2353.5483332210838,30027.078791097076]
[null,null,null,null,null,223,19,561388.95817572263,32380.627124318158,2234.0551561291518,30146.571968189008]
[null,null,null,null,null,224,19,531242.38620753365,32380.627124318158,2114.0864542793552,30266.540670038805]
[null,null,null,null,null,225,19,500975.84553749487,32380.627124318158,1993.6403353143155,30386.986789003844]
[null,null,null,null,null,226,19,470588.85874849104,32380.627124318158,1872.7148993459919,30507.912224972166]
[null,null,null,null,null,227,19,440080.94652351888,32380.627124318158,1751.308238925712,30629.318885392448]
[null,null,null,null,null,228,19,409451.62763812643,32380.627124318158,1629.4184390140861,30751.208685304071]
[null,null,null,null,null,229,20,378700.41895282234,32380.627124318158,1507.0435769507978,30873.583547367361]
[null,null,null,null,null,230,20,347826.83540545497,32380.627124318158,1384.1817224242777,30996.445401893881]
[null,null,null,null,null,231,20,316830.3900035611,32380.627124318158,1260.8309374412549,31119.796186876902]
[null,null,null,null,null,232,20,285710.59381668421,32380.627124318158,1136.9892762961867,31243.637848021972]
[null,null,null,null,null,233,20,254466.95596866222,32380.627124318158,1012.6547855405688,31367.972338777588]
[null,null,null,null,null,234,20,223098.98362988463,32380.627124318158,887.82550395212081,31492.801620366037]
[null,null,null,null,null,235,20,191606.18200951861,32380.627124318158,762.49946250385176,31618.127661814306]
[null,null,null,null,null,236,20,159988.05434770431,32380.627124318158,636.67468433299985,31743.952439985158]
[null,null,null,null,null,237,20,128244.10190771916,32380.627124318158,510.34918470985059,31870.277939608306]
[null,null,null,null,null,238,20,96373.823968110853,32380.627124318158,383.52097100643005,31997.106153311728]
[null,null,null,null,null,239,20,64376.717814799122,32380.627124318158,256.18804266507391,32124.439081653083]
[null,null,null,null,null,240,20,32252.278733146039,32380.627124318158,128.34839116687041,32252.278733151288]
[null,null,null,null,null,241,21,0,0,0,0]
[null,null,null,null,null,242,21,0,0,0,0]
[null,null,null,null,null,243,21,0,0,0,0]
[null,null,null,null,null,244,21,0,0,0,0]
[null,null,null,null,null,245,21,0,0,0,0]
[null,null,null,null,null,246,21,0,0,0,0]
[null,null,null,null,null,247,21,0,0,0,0]
[null,null,null,null,null,248,21,0,0,0,0]
[null,null,null,null,null,249,21,0,0,0,0]
[null,null,null,null,null,250,21,0,0,0,0]
[null,null,null,null,null,251,21,0,0,0,0]
[null,null,null,null,null,252,21,0,0,0,0]
[null,null,null,null,null,253,22,0,0,0,0]
[null,null,null,null,null,254,22,0,0,0,0]
[null,null,null,null,null,255,22,0,0,0,0]
[null,null,null,null,null,256,22,0,0,0,0]
[null,null,null,null,null,257,22,0,0,0,0]
[null,null,null,null,null,258,22,{"$f":"IF(F259>Tenor*12,0,H258-K258)","v":0},{"$f":"IF(F259>Tenor*12,0,Installment)","v":0},{"$f":"IF(F259>Tenor*12,0,H259*RealKamatláb/360*(365/12))","v":0},{"$f":"IF(F259>Tenor*12,0,I259-J259)","v":0}]
[null,null,null,null,null,259,22,0,0,0,0]
[null,null,null,null,null,260,22,0,0,0,0]
[null,null,null,null,null,261,22,0,0,0,0]
[null,null,null,null,null,262,22,0,0,0,0]
[null,null,null,null,null,263,22,0,0,0,0]
[null,null,null,null,null,264,22,0,0,0,0]
[null,null,null,null,null,265,23,0,0,0,0]
[null,null,null,null,null,266,23,0,0,0,0]
[null,null,null,null,null,267,23,0,0,0,0]
[null,null,null,null,null,268,23,0,0,0,0]
[null,null,null,null,null,269,23,0,0,0,0]
[null,null,null,null,null,270,23,0,0,0,0]
[null,null,null,null,null,271,23,0,0,0,0]
[null,null,null,null,null,272,23,0,0,0,0]
[null,null,null,null,null,273,23,0,0,0,0]
[null,null,null,null,null,274,23,0,0,0,0]
[null,null,null,null,null,275,23,0,0,0,0]
[null,null,null,null,null,276,23,0,0,0,0]
[null,null,null,null,null,277,24,0,0,0,0]
[null,null,null,null,null,278,24,0,0,0,0]
[null,null,null,null,null,279,24,0,0,0,0]
[null,null,null,null,null,280,24,0,0,0,0]
[null,null,null,null,null,281,24,0,0,0,0]
[null,null,null,null,null,282,24,0,0,0,0]
[null,null,null,null,null,283,24,0,0,0,0]
[null,null,null,null,null,284,24,0,0,0,0]
[null,null,null,null,null,285,24,0,0,0,0]
[null,null,null,null,null,286,24,0,0,0,0]
[null,null,null,null,null,287,24,0,0,0,0]
[null,null,null,null,null,288,24,0,0,0,0]
[null,null,null,null,null,289,25,0,0,0,0]
[null,null,null,null,null,290,25,0,0,0,0]
[null,null,null,null,null,291,25,0,0,0,0]
[null,null,null,null,null,292,25,0,0,0,0]
[null,null,null,null,null,293,25,0,0,0,0]
[null,null,null,null,null,294,25,0,0,0,0]
[null,null,null,null,null,295,25,0,0,0,0]
[null,null,null,null,null,296,25,0,0,0,0]
[null,null,null,null,null,297,25,0,0,0,0]
[null,null,null,null,null,298,25,0,0,0,0]
[null,null,null,null,null,299,25,0,0,0,0]
[null,null,null,null,null,300,25,0,0,0,0]
[null,null,null,null,null,301,26,0,0,0,0]
[null,null,null,null,null,302,26,0,0,0,0]
[null,null,null,null,null,303,26,0,0,0,0]
[null,null,null,null,null,304,26,0,0,0,0]
[null,null,null,null,null,305,26,0,0,0,0]
[null,null,null,null,null,306,26,0,0,0,0]
[null,null,null,null,null,307,26,0,0,0,0]
[null,null,null,null,null,308,26,0,0,0,0]
[null,null,null,null,null,309,26,0,0,0,0]
[null,null,null,null,null,310,26,0,0,0,0]
[null,null,null,null,null,311,26,0,0,0,0]
[null,null,null,null,null,312,26,0,0,0,0]
[null,null,null,null,null,313,27,0,0,0,0]
[null,null,null,null,null,314,27,0,0,0,0]
[null,null,null,null,null,315,27,0,0,0,0]
[null,null,null,null,null,316,27,0,0,0,0]
[null,null,null,null,null,317,27,0,0,0,0]
[null,null,null,null,null,318,27,0,0,0,0]
[null,null,null,null,null,319,27,0,0,0,0]
[null,null,null,null,null,320,27,0,0,0,0]
[null,null,null,null,null,321,27,0,0,0,0]
[null,null,null,null,null,322,27,{"$f":"IF(F323>Tenor*12,0,H322-K322)","v":0},{"$f":"IF(F323>Tenor*12,0,Installment)","v":0},{"$f":"IF(F323>Tenor*12,0,H323*RealKamatláb/360*(365/12))","v":0},{"$f":"IF(F323>Tenor*12,0,I323-J323)","v":0}]
[null,null,null,null,null,323,27,0,0,0,0]
[null,null,null,null,null,324,27,0,0,0,0]
[null,null,null,null,null,325,28,0,0,0,0]
[null,null,null,null,null,326,28,0,0,0,0]
[null,null,null,null,null,327,28,0,0,0,0]
[null,null,null,null,null,328,28,0,0,0,0]
[null,null,null,null,null,329,28,0,0,0,0]
[null,null,null,null,null,330,28,0,0,0,0]
[null,null,null,null,null,331,28,0,0,0,0]
[null,null,null,null,null,332,28,0,0,0,0]
[null,null,null,null,null,333,28,0,0,0,0]
[null,null,null,null,null,334,28,0,0,0,0]
[null,null,null,null,null,335,28,0,0,0,0]
[null,null,null,null,null,336,28,0,0,0,0]
[null,null,null,null,null,337,29,0,0,0,0]
[null,null,null,null,null,338,29,0,0,0,0]
[null,null,null,null,null,339,29,0,0,0,0]
[null,null,null,null,null,340,29,0,0,0,0]
[null,null,null,null,null,341,29,0,0,0,0]
[null,null,null,null,null,342,29,0,0,0,0]
[null,null,null,null,null,343,29,0,0,0,0]
[null,null,null,null,null,344,29,0,0,0,0]
[null,null,null,null,null,345,29,0,0,0,0]
[null,null,null,null,null,346,29,0,0,0,0]
[null,null,null,null,null,347,29,0,0,0,0]
[null,null,null,null,null,348,29,0,0,0,0]
[null,null,null,null,null,349,30,0,0,0,0]
[null,null,null,null,null,350,30,0,0,0,0]
[null,null,null,null,null,351,30,0,0,0,0]
[null,null,null,null,null,352,30,0,0,0,0]
[null,null,null,null,null,353,30,0,0,0,0]
[null,null,null,null,null,354,30,0,0,0,0]
[null,null,null,null,null,355,30,0,0,0,0]
[null,null,null,null,null,356,30,0,0,0,0]
[null,null,null,null,null,357,30,0,0,0,0]
[null,null,null,null,null,358,30,0,0,0,0]
[null,null,null,null,null,359,30,0,0,0,0]
[null,null,null,null,null,360,30,0,0,0,0]

{"sheet":"Indikativ","index":5,"n_rows":175,"n_cols":19,"rows_kept":175,"cut":false,"hidden":true,"merged":[[10,0,10,19],[11,0,11,19],[12,0,12,19],[13,4,13,7],[14,4,14,6],[16,0,16,19],[0,0,0,19],[2,0,2,19],[6,0,6,19],[7,0,7,19],[8,0,8,19],[9,0,9,19],[22,12,22,14],[24,13,24,15],[25,0,25,19],[26,0,26,19],[27,0,27,19],[28,6,28,7],[17,0,17,19],[18,7,18,9],[19,4,19,6],[19,13,19,15],[20,0,20,19],[21,0,21,19],[29,0,29,19],[30,0,30,19],[31,14,31,15],[32,2,32,3],[33,0,33,19],[36,0,36,1],[36,2,36,5],[36,6,36,7],[36,8,36,13],[36,14,36,15],[46,0,46,19],[47,5,47,7],[49,6,49,8],[50,1,50,19],[51,18,51,19],[37,0,37,19],[38,7,38,8],[38,9,38,19],[40,15,40,16],[41,8,41,9],[42,8,42,9],[63,0,63,19],[65,4,65,5],[66,0,66,19],[67,0,67,2],[68,0,68,19],[69,0,69,19],[53,10,53,12],[54,1,54,19],[55,1,55,19],[58,1,58,19],[60,1,60,19],[61,1,61,19],[70,8,70,9],[71,0,71,2],[72,0,72,19],[73,0,73,19],[74,0,74,19],[75,0,75,3],[75,4,75,7],[75,8,75,11],[75,12,75,15],[75,16,75,19],[76,0,76,3],[76,4,76,7],[76,8,76,11],[76,12,76,15],[76,16,76,19],[77,0,77,3],[77,4,77,7],[77,8,77,11],[77,12,77,15],[77,16,77,19],[78,0,78,3],[78,4,78,7],[78,8,78,11],[78,12,78,15],[78,16,78,19],[79,0,79,3],[79,4,79,7],[79,8,79,11],[79,12,79,15],[79,16,79,19],[80,0,80,3],[80,4,80,7],[80,8,80,11],[80,12,80,15],[80,16,80,19],[81,0,81,3],[81,4,81,7],[81,8,81,11],[81,12,81,15],[81,16,81,19],[82,0,82,3],[82,4,82,7],[82,8,82,11],[82,12,82,15],[82,16,82,19],[83,0,83,3],[83,4,83,7],[83,8,83,11],[83,12,83,15],[83,16,83,19],[84,0,84,3],[84,4,84,7],[84,8,84,11],[84,12,84,15],[84,16,84,19],[85,0,85,3],[85,4,85,7],[85,8,85,11],[85,12,85,15],[85,16,85,19],[86,0,86,3],[86,4,86,7],[86,8,86,11],[86,12,86,15],[86,16,86,19],[87,0,87,3],[87,4,87,7],[87,8,87,11],[87,12,87,15],[87,16,87,19],[88,0,88,3],[88,4,88,7],[88,8,88,11],[88,12,88,15],[88,16,88,19],[89,0,89,3],[89,4,89,7],[89,8,89,11],[89,12,89,15],[89,16,89,19],[90,0,90,3],[90,4,90,7],[90,8,90,11],[90,12,90,15],[90,16,90,19],[91,0,91,3],[91,4,91,7],[91,8,91,11],[91,12,91,15],[91,16,91,19],[92,0,92,3],[92,4,92,7],[92,8,92,11],[92,12,92,15],[92,16,92,19],[93,0,93,3],[93,4,93,7],[93,8,93,11],[93,12,93,15],[93,16,93,19],[94,0,94,3],[94,4,94,7],[94,8,94,11],[94,12,94,15],[94,16,94,19],[95,0,95,3],[95,4,95,7],[95,8,95,11],[95,12,95,15],[95,16,95,19],[96,0,96,3],[96,4,96,7],[96,8,96,11],[96,12,96,15],[96,16,96,19],[97,0,97,3],[97,4,97,7],[97,8,97,11],[97,12,97,15],[97,16,97,19],[98,0,98,3],[98,4,98,7],[98,8,98,11],[98,12,98,15],[98,16,98,19],[99,0,99,3],[99,4,99,7],[99,8,99,11],[99,12,99,15],[99,16,99,19],[100,0,100,3],[100,4,100,7],[100,8,100,11],[100,12,100,15],[100,16,100,19],[101,0,101,3],[101,4,101,7],[101,8,101,11],[101,12,101,15],[101,16,101,19],[102,0,102,3],[102,4,102,7],[102,8,102,11],[102,12,102,15],[102,16,102,19],[103,0,103,3],[103,4,103,7],[103,8,103,11],[103,12,103,15],[103,16,103,19],[104,0,104,3],[104,4,104,7],[104,8,104,11],[104,12,104,15],[104,16,104,19],[105,0,105,3],[105,4,105,7],[105,8,105,11],[105,12,105,15],[105,16,105,19],[106,0,106,3],[106,4,106,7],[106,8,106,11],[106,12,106,15],[106,16,106,19],[107,0,107,3],[107,4,107,7],[107,8,107,11],[107,12,107,15],[107,16,107,19],[108,0,108,3],[108,4,108,7],[108,8,108,11],[108,12,108,15],[108,16,108,19],[109,0,109,3],[109,4,109,7],[109,8,109,11],[109,12,109,15],[109,16,109,19],[110,0,110,3],[110,4,110,7],[110,8,110,11],[110,12,110,15],[110,16,110,19],[111,0,111,3],[111,4,111,7],[111,8,111,11],[111,12,111,15],[111,16,111,19],[112,0,112,3],[112,4,112,7],[112,8,112,11],[112,12,112,15],[112,16,112,19],[113,0,113,3],[113,4,113,7],[113,8,113,11],[113,12,113,15],[113,16,113,19],[114,0,114,3],[114,4,114,7],[114,8,114,11],[114,12,114,15],[114,16,114,19],[115,0,115,3],[115,4,115,7],[115,8,115,11],[115,12,115,15],[115,16,115,19],[116,0,116,3],[116,4,116,7],[116,8,116,11],[116,12,116,15],[116,16,116,19],[117,0,117,3],[117,4,117,7],[117,8,117,11],[117,12,117,15],[117,16,117,19],[118,0,118,3],[118,4,118,7],[118,8,118,11],[118,12,118,15],[118,16,118,19],[119,0,119,3],[119,4,119,7],[119,8,119,11],[119,12,119,15],[119,16,119,19],[127,0,127,19],[128,0,128,19],[129,0,129,19],[130,0,130,19],[132,0,132,19],[133,1,133,19],[121,0,121,19],[122,0,122,19],[123,0,123,19],[124,0,124,19],[125,0,125,19],[126,0,126,19],[131,1,131,19],[140,0,140,19],[141,0,141,19],[142,0,142,19],[143,0,143,19],[144,0,144,19],[145,0,145,19],[134,1,134,19],[135,1,135,19],[136,0,136,19],[137,0,137,19],[138,0,138,19],[139,0,139,19],[152,0,152,19],[153,0,153,19],[154,0,154,19],[155,0,155,19],[156,0,156,19],[157,0,157,19],[146,0,146,19],[147,0,147,19],[148,0,148,19],[149,0,149,19],[150,0,150,19],[151,0,151,19],[173,11,173,17],[174,11,174,17],[166,0,166,19],[158,0,158,19],[159,0,159,19],[160,0,160,19],[161,0,161,19],[162,0,162,19],[163,0,163,19]]}
["Bevezető szöveg"]
["Ez a dokumentum ",null,null,null,"2019.05.31-én  részére készült."]
["Ez a dokumentum az Ön által ezidáig megadott adatok és a jelenlegi pénzügyi piaci feltételek alapján készült."]
["Az alábbi tájékoztatás ",null,null,null,null,"2019.06.30-ig érvényes"]
["Ezt követően a piaci feltételek függvényében változhat."]
["Ez a dokumentum nem kötelezi MagNet Bank Zrt.-t arra, hogy hitelt nyújtson Önnek."]
["1. Hitelező"]
["Hitelező neve: MagNet Magyar Közösségi Bank Zrt."]
["Telefonszám: 06-1-428-8888"]
["Levelezési cím: 1376 Budapest 62. Pf. 86."]
["E-mail cím: info@magnetbank.hu"]
["Internetcím: www.magnetbank.hu "]
["2. A hitel fő jellemzői"]
["A hitel összege: ",null,null,null,5000000,null,null,null,"A hitel devizaneme:",null,null,null,"HUF (magyar forint)"]
["A hitel futamideje: ",null,null,null,240]
["A hitel típusa:",null,null,null,"MagNet Stabil Ötös Lakáshitel"]
["A kölcsön visszafizetése annuitásos módon történik, ahol a kölcsönfelvevő egy kamatperióduson belül havonta egyenlő összeget fizet. Az annuitásos törlesztőrészlet hitelkamatot és tőkét is tartalmaz, azonban a havonta fizetendő részletben eltérő a kamat és a tőke aránya. A törlesztőrészleten belül - változatlan ügyleti kamatlábat feltételezve - a futamidő elején magasabb a kamat, később pedig a tőke aránya. \nAz alkalmazandó kamatláb típusa:\n5 éves kamatperiódusban rögzített kamatozású.\nAz ügyleti kamat kamatperiódusonként rögzített kamatozású, az egyes kamatperiódusok alatt az ügyleti kamat nem változtatható.\nKamatperiódus hossza: 5 év\nA hitelkamat mértékét a kölcsön törlesztésére szolgáló fizetési számlán havonta jóváírt összeg, és a szerződött kölcsönösszeg alapján, valamint a „Hirdetmény a MagNet Bank Zrt. fogyasztók részére nyújtott hitelek kamatairól, alkalmazott díjairól, és költségeiről” Hirdetményben (továbbiakban: Hirdetmény) közzétett feltételek fennállása esetén nyújtott kamatkedvezmények figyelembe vételével a Bank saját hatáskörében határozza meg, és mértékét a mindenkor hatályos Hirdetményében teszi közzé.\nAz első kamatperiódus utolsó napja a 60. törlesztési esedékesség napja, az ezt követő kamatperiódusok kezdete az előző kamatperiódus utolsó napját követő nap, utolsó napja pedig az előző kamatperiódus végétől számított 60. törlesztési esedékességi nap. Az utolsó kamatperiódus utolsó napja megegyezik a kölcsön lejáratának napjával. Választott kamatváltoztatási mutató: H3K5.\nKamatváltozás:"]
["Az ügyleti kamat mértékét a kölcsön futamideje alatt legfeljebb öt alkalommal az egyes kamatperiódusok lejártát követően legfeljebb a kölcsönszerződésben meghatározott, a Magyar Nemzeti Bank honlapján közzétett H3K5 kamatváltoztatási mutató alkalmazásával számított mértékig módosíthatja.\nAz új kamatperiódusban alkalmazott kamat mértékét a kamatperiódus lejártát megelőző 120. napi kamatváltoztatási mutató figyelembevételével kell megállapítani.\nHa a hitelszerződés egyoldalú módosításának alapjául szolgáló feltételek a hitelkamat csökkentését teszik lehetővé, akkor a Banknak ezt a fogyasztó javára érvényesíteni kell.\nA bank jogosult a nyújtott kamatkedvezmény feltételeit a futamidő során vizsgálni, és amennyiben a felülvizsgálat során a kedvezménynyújtás feltételei már nem állnak fent, akkor a Bank jogosult a kamatkedvezményt a hátralevő futamidőre vonatkozóan megvonni.\nA Bank a honlapján elérhetővé teszi a referencia kamat alapú hitelek kamatainak kiszámításához, az általa felhasznált referencia-kamatláb és kamatfelár-változtatási mutató aktuális és korábbi adatait, valamint alkalmazásának időszakát. \nA Stabil Stabil ötös és Stabil tízes termékkörbe tartozó hitelek esetén, a kamatváltoztatási mutatóról szintén a Hirdetményben talál tájékoztatást. \n(Hirdetmény a MagNet Bank Zrt. fogyasztók részére nyújtott, forint alapú hitelek referencia - kamatlábairól, és kamat- kamatfelár-változtatási mutatóról, elérhetősége: https://www.magnetbank.hu/dokumentumok/hirdetmenyek)"]
["Az Ön által fizetendő teljes összeg:",null,null,null,null,null,null,8517076.0744000003]
["Ez azt jelenti, hogy ",null,null,null,5000000,null,null,"-ért, amelyet hitelként felvesz, ",null,null,null,null,null,8517076.0744000003,null,null,"-ot kell visszafizetnie. "]
["Kérjük vegye figyelembe, hogy a futamidő alatt a hitelkamat mértéke a hitel típusától függően, a  kamatváltoztatási mutatónak/referencia-kamatláb változásának megfelelően módosulhat, ezért előfordulhat, hogy az itt feltüntetett fizetendő teljes összeg változik, ezért az csupán szemléltető jelleggel került feltüntetésre. "]
["Felhívjuk szíves figyelmét, a kölcsön biztosítéka minden esetben magánszemély tulajdonában álló, Magyarország területén fekvő, önállóan forgalomképes ingatlanon alapított önálló zálogjog."]
["Ennek a tájékoztatásnak az elkészítéséhez az ingatlan értékét ",null,null,null,null,null,null,null,null,null,null,null,0,null,null,"-nak tekintettük. "]
["A maximálisan igénybe vehető hitelösszeg az ingatlan forgalmi értékének",null,null,null,null,null,null,null,null,null,null,null,null,0.8,"-a lehet, amely azt jelenti, hogy"]
["az igénybe vehető hitel maximális összege a biztosíték értéke alapján: ",null,null,null,null,null,null,null,null,null,null,null,null,0]
["Az ingatlan értékét a Bank által elfogadott külső értékbecslő vállalkozás állapítja meg, és az értékbecslő által megállapított ingatlanérték eltérhet az ingatlan fent megadott értékétől."]
["3. Kamat és egyéb költségek"]
["A teljes hiteldíj mutató (THM) a hitel teljes éves díját mutatja meg százalékban kifejezve. A THM a különböző ajánlatok összehasonlítását szolgálja."]
["Az Ön hitelére érvényes THM ",null,null,null,null,null,6.1394528425660511E-2]
["Tájékoztatjuk, hogy a bemutatott THM azzal a feltételezéssel került kiszámításra, hogy a kamatláb a hitelszerződés teljes időtartama alatt a kezdeti időszakra rögzített szinten marad."]
["Mivel az Ön hitele változó kamatlábú hitel, a mindenkori THM eltérhet az előbbiekben meghatározott THM "]
["mértékétől, ha a hitel kamatlába változik. Például amennyiben a kamatláb ",null,null,null,null,null,null,null,null,null,null,null,null,null,0.23230000000000001,null,"-ra emelkedne, "]
[" a THM",null,0.26803301048855799,null,"-ra nőhet. "]
["A feltüntetett THM meghatározása az aktuális feltételek, illetve a hatályos jogszabályok figyelembevételével történt. A feltételek változása esetén a THM mértéke módosulhat. A THM-mutató értéke nem tükrözi a változó kamatozású hitelek kamatkockázatát. A hitel felvételéhez a fedezetül bevont ingatlanra vonatkozóan egyéni vagyonbiztosítás megkötése, vagy megléte szükséges lehet."]
["A THM az alábbiakat tartalmazza:"]
["Kamatláb "]
[5.6800000000000003E-2]
["A hitelkamatból a Bank a szerződés szerint kedvezményt biztosít a teljes futamidő alatt, ha a kamatkedvezmény Hirdetményben és a kölcsönszerződésben meghatározott feltételei fennállnak."]
["Kamatfelár-kedvezmény mértéke:",null,null,null,null,null,null,0,null,"(Az ügyleti kamat már tartalmazza a kamatkedvezményt.)"]
["Figyelembe vett kamatfelár-kedvezmény:"]
[null,"Havi rendszeres jóváírásra tekintettel nyújtott kamatfelár-kedvezmény:",null,null,null,null,null,null,null,null,null,null,null,null,null,0]
[null,"\"Közösségi ügyfél\" kedvezmény:",null,null,null,null,null,null,0]
[null,"Egyedi kamatkedvezmény:"]
["Az egyes kamatfelár kedvezmények mértékeit és a feltételeit a Hirdetmény tartalmazza. "]
["THM egyéb összetevői:"]
[]
["Egyszer fizetendő díjak, költségek:"]
[null,"Folyósítási díj: ",null,null,null,37783.3753]
[null,"Egyszeri díj, mely a kölcsön folyósításakor, a folyósított kölcsönösszeg után fizetendő. "]
[null,"Értékbecslés költsége: ",null,null,null,null,30000]
[null,"A helyszíni szemle során esedékes, és közvetlenül az értékbecslőnek fizetendő. Abban az esetben sem jár vissza, ha az igénylés nem kerül jóváhagyásra. "]
[null,"Takarnetről lekért, vagy a Földhivatal által kiállított hiteles tulajdoni lap másolatának díja:",null,null,null,null,null,null,null,null,null,null,null,null,null,null,null,null,5600]
[null,"Térképmásolat TAKARNET-en keresztüli lekérdezésének költsége: 3 000 Ft"]
[null,"Fedezettel kapcsolatos ügyintézés költsége:"]
[]
[null,"A jelzálogjog bejegyzéséért díjat kell fizetnie. Díj összege: 12 600 Ft. (Az önálló zálogjog ingatlan-nyilvántartásban történő bejegyzése, valamint a bejegyzés módosítása iránti eljárás jogszabályban meghatározott díja.)"]
["Rendszeresen fizetendő költségek:"]
[null,"Rendelkezésre tartási díj:"]
[null,"A kölcsönszerződésben meghatározott, de még ki nem folyósított kölcsön(rész) után a rendelkezésre tartási időszakban fizetendő díj, amelynek mértéke: 2%, de legfeljebb az ügyleti kamat 50%-a. A díj a mindenkori kölcsöntörlesztés teljesítésével egyidejűleg esedékes. "]
["Az alábbi költségek nem ismertek a hitelező számára, és így azokat a THM nem foglalja magában: "]
[null,"Egyéni vagyonbiztosítás díja: A Bank döntésben előírhatja a kölcsön fedezetéül szolgáló ingatlan(ok)ra az egyéni vagyonbiztosítás meglétét. Ebben az esetben a biztosítást, a teljes futamidő alatt fent kell tartani! Az ingatlanra megkötött egyéni vagyonbiztosítás után fizetendő biztosítási díjat a biztosítók egyedi díjszabásuk szerint határozzák meg. A fogyasztó szabadon eldöntheti, hogy bármely magyarországi biztosítótársaságból választva mely biztosítótársaságnál köti meg a biztosításra vonatkozó szerződést."]
[null,"Hitelfedezeti (kockázati) életbiztosítás díja: A Bank előírhatja az Adós személyére a hitelfedezeti (kockázati) életbiztosítás megkötését. Az életbiztosítás díját a teljes futamidő alatt az Adósnak kell fizetnie. A fogyasztó szabadon eldöntheti, hogy bármely magyarországi biztosítótársaságból választva mely biztosítótársaságnál köti meg a biztosításra vonatkozó szerződést."]
["Kérjük, tájékozódjon az ehhez a hitelhez kapcsolódó minden egyéb illetékről és költségről."]
["4. A törlesztések gyakorisága és száma"]
["A törlesztések gyakorisága: havi"]
["A törlesztések száma: ",null,null,null,240]
["5. Az egyes törlesztőrészletek összege"]
[35129.552900000002]
["Az itt feltüntetett törlesztőrészlet az első kamatperiódusra (5 év) érvényes. A havi törlesztőrészlet összege kamatperióduson belül változatlan összegű, kamatperiódusonként változó. Amennyiben a hitelkamat csökken, úgy a havi törlesztőrészlet is csökkenni fog, míg a hitelkamat növekedése a havi törlesztőrészlet összegének emelkedését eredményezi."]
["E hitelnek a kamata változhat. Ez azt jelenti, hogy az Ön által fizetendő törlesztőrészletek összege nőhet vagy "]
["csökkenhet. Például amennyiben a kamat ",null,null,null,null,null,null,null,0.23230000000000001,null,"-ra emelkedne, az Ön által fizetendő részlet "]
[99069.2497,null,null,"-ra nőne."]
["Az Ön jövedelme változhat. Kérjük, gondolja át, hogy a jövedelme csökkenése esetén is képes lesz-e törleszteni a havi részleteket."]
["6. Szemléltető törlesztési táblázat"]
["Ebben a táblázatban a havonta fizetendő összeg látható.\nA törlesztőrészletek (2. oszlop) a fizetendő kamat (3. oszlop), adott esetben a fizetendő tőke (4. oszlop) összegéből állnak. A fennmaradó tőke (5. oszlop) az egyes törlesztőrészletek után még törlesztendő hitelösszeg."]
["A törlesztés ütemezése",null,null,null,"A törlesztőrészlet összege",null,null,null,"Törlesztőrészletenként fizetendő kamat",null,null,null,"Törlesztőrészletenként fizetendő tőke",null,null,null,"Az egyes törlesztőrészletek után fennmaradó tőke"]
[1,null,null,null,35129.552900000002,null,null,null,23995.3704,null,null,null,11134.182500000001,null,null,null,4988865.8174999999]
[2,null,null,null,35129.552900000002,null,null,null,23941.936600000001,null,null,null,11187.6163,null,null,null,4977678.2011000002]
[3,null,null,null,35129.552900000002,null,null,null,23888.2464,null,null,null,11241.306500000001,null,null,null,4966436.8946000002]
[4,null,null,null,35129.552900000002,null,null,null,23834.298500000001,null,null,null,11295.2544,null,null,null,4955141.6403000001]
[5,null,null,null,35129.552900000002,null,null,null,23780.091799999998,null,null,null,11349.4611,null,null,null,4943792.1791000003]
[6,null,null,null,35129.552900000002,null,null,null,23725.624899999999,null,null,null,11403.928,null,null,null,4932388.2511]
[7,null,null,null,35129.552900000002,null,null,null,23670.8966,null,null,null,11458.656300000001,null,null,null,4920929.5948000001]
[8,null,null,null,35129.552900000002,null,null,null,23615.905599999998,null,null,null,11513.647300000001,null,null,null,4909415.9474999998]
[9,null,null,null,35129.552900000002,null,null,null,23560.650799999999,null,null,null,11568.902099999999,null,null,null,4897847.0454000002]
[10,null,null,null,35129.552900000002,null,null,null,23505.130799999999,null,null,null,11624.4221,null,null,null,4886222.6232000003]
[11,null,null,null,35129.552900000002,null,null,null,23449.344300000001,null,null,null,11680.2086,null,null,null,4874542.4145999998]
[12,null,null,null,35129.552900000002,null,null,null,23393.290099999998,null,null,null,11736.2628,null,null,null,4862806.1518000001]
[1,null,null,null,421554.63480000006,null,null,null,284360.7868,null,null,null,137193.848,null,null,null,4862806.1518000001]
[2,null,null,null,421554.63495302218,null,null,null,276248.03121402452,null,null,null,145306.6037389976,null,null,null,4717499.5481020762]
[3,null,null,null,421554.63495302218,null,null,null,267655.53981499828,null,null,null,153899.0951380239,null,null,null,4563600.4529640526]
[4,null,null,null,421554.63495302218,null,null,null,258554.94412791805,null,null,null,162999.69082510416,null,null,null,4400600.7621389497]
[5,null,null,null,421554.63495302218,null,null,null,248916.1981561631,null,null,null,172638.43679685905,null,null,null,4227962.3253420899]
[6,null,null,null,421554.63495302218,null,null,null,238707.47917747949,null,null,null,182847.15577554266,null,null,null,4045115.1695665475]
[7,null,null,null,421554.63495302218,null,null,null,227895.08267993398,null,null,null,193659.55227308816,null,null,null,3851455.6172934589]
[8,null,null,null,421554.63495302218,null,null,null,216443.31108506047,null,null,null,205111.32386796168,null,null,null,3646344.2934254971]
[9,null,null,null,421554.63495302218,null,null,null,204314.35589081448,null,null,null,217240.27906220773,null,null,null,3429104.0143632884]
[10,null,null,null,421554.63495302218,null,null,null,191468.17284522497,null,null,null,230086.46210779721,null,null,null,3199017.5522554903]
[11,null,null,null,421554.63495302218,null,null,null,177862.34973862479,null,null,null,243692.28521439736,null,null,null,2955325.2670410937]
[12,null,null,null,421554.63495302218,null,null,null,163451.96637796963,null,null,null,258102.66857505255,null,null,null,2697222.5984660415]
[13,null,null,null,421554.63495302218,null,null,null,148189.4462809448,null,null,null,273365.18867207738,null,null,null,2423857.4097939646]
[14,null,null,null,421554.63495302218,null,null,null,132024.39960022309,null,null,null,289530.23535279906,null,null,null,2134327.1744411644]
[15,null,null,null,421554.63495302218,null,null,null,114903.45675927967,null,null,null,306651.17819374247,null,null,null,1827675.996247422]
[16,null,null,null,421554.63495302218,null,null,null,96770.092250507136,null,null,null,324784.54270251503,null,null,null,1502891.4535449073]
[17,null,null,null,421554.63495302218,null,null,null,77564.438013891893,null,null,null,343990.19693913026,null,null,null,1158901.2566057772]
[18,null,null,null,421554.63495302218,null,null,null,57223.085780114678,null,null,null,364331.54917290749,null,null,null,794569.70743286971]
[19,null,null,null,421554.63495302218,null,null,null,35678.877725501916,null,null,null,385875.75722752023,null,null,null,408693.9502053496]
[20,null,null,null,421554.63495302218,null,null,null,12860.684747667039,null,null,null,408693.95020535518,null,null,null,0]
[21]
[22]
[23]
[24]
[25]
[26]
[27]
[28]
[29]
[30]
["Mindösszesen",null,null,null,8431092.69890742,null,null,null,3431092.6990663423,null,null,null,4999999.9998410791]
[]
[]
["A táblázat az aktuális kondíciók figyelembe vételével készült, ezért az ismert összegeket vizuálisan megkülönböztetjük a feltételezettektől. A feltételezett adatokat dőlt betűvel tüntettük fel. "]
["A Bank minden referencia-kamatláb / kamatperiódus fordulónapján törlesztési táblázat megküldésével tájékoztatást küld a fogyasztó részére díj, és költségmentesen. "]
["A hitel kamatlába a hitel futamideje alatt változhat, a kezdeti hitelkamatláb az első kamatperiódusra (5 év) érvényes."]
["Kérjük, vegye figyelembe, hogy a táblázat csak szemléltetésre szolgál, és a jelzálogkölcsön változó kamatozású (kamatperióduson belül fix), ebből fakadóan a táblázatban közölt értékek változhatnak."]
["7. További kötelezettségek"]
["A fogyasztónak a következő kötelezettségeket kell teljesítenie ahhoz, hogy az ebben a dokumentumban ismertetett feltételekkel juthasson hitelhez:"]
["Tekintettel arra, hogy a kölcsön törlesztése csak MagNet Banknál vezetett fizetési számláról történhet, ezért Önnek legalább korlátozott rendeltetésű bankszámlával a hitelszerződés teljes időtartama alatt rendelkeznie kell, amelyet a Bank díj, és költségmentesen biztosít az Ön részére. Kérjük, vegye figyelembe, hogy erről a korlátozott rendeltetésű fizetési számláról kizárólag a kölcsön törlesztése történhet, egyéb megbízás nem adható a bankszámla terhére, és nem kapcsolódhat hozzá kiegészítő szolgáltatás, úgy mint bankkártya, NetBank stb. "]
["Amennyiben Ön a MagNet Bank pénzforgalmi szolgáltatásait is igénybe kívánja venni, úgy a Banknál lakossági bankszámlát (fizetési számlát) nyithat, és ebben az esetben erről a számláról történik a kölcsön törlesztése."]
["Kamatfelár-kedvezmény esetén az alábbi feltételeket kell vállalnia:"]
["Tekintettel arra a vállalására, hogy a kölcsön teljes futamideje alatt a kölcsön törlesztésére szolgáló fizetési számlán havi rendszerességgel jóváírást teljesít, a Bank kedvezményes hitelkamatot állapított meg a Hirdetményben foglaltak szerint. Ezzel kapcsolatosan az alábbi feltételeket kell teljesítenie:"]
[null,"• A jóváírás átutalással, a kölcsön törlesztésére szolgáló MagNet fizetési számlára (bankszámlára) érkezik a hitel teljes futamideje alatt (amelybe a bankon belüli saját számlák közötti átvezetések, és MagNet Bank hitelezésével összefüggő jóváírások nem számítanak bele).\n• Havi jóváírásokat naptári hónapokként kell teljesíteni. \n• Legfeljebb havi kettő jóváírás együttes összegének kell elérni vagy meghaladni a választott kedvezmény kategória szerinti minimum összeget. \n• A vállalt feltételek teljesítésének ellenőrzése 6 havonta történik. A kedvezmény igénybevételéhez a feltétel vizsgálat időpontját megelőző 6 hónapban legalább 4 alkalommal teljesíteni kell jóváírást.\n• Amennyiben a jóváírás nem felel meg a fenti feltételeknek, úgy a Bank a kedvezményt visszavonja és a kölcsön ügyleti kamata megemelkedik a kedvezmény nélküli mértékre (a 100 000 forintot el nem érő jóváíráshoz tartozó kategória szerinti kamat).\n• A feltétel ezt követően történő újbóli teljesülése esetén (a fentiek szerint) a teljesítést követő esedékességkor a kedvezmény ismételten megadásra kerül."]
["„Közösségi Ügyfél\" kedvezmény feltételei:"]
[null,"A „Közösségi ügyfél” Kedvezmény igénybe vételéhez az alábbi feltételek közül legalább az egyik teljesítését vállalja az Adós: "]
[null,"• az Adós Közösségi Hatása  legalább 65% vagy"]
[null,"• az Adós az érintett jelzáloghitel ügylettel csatlakozik a Mentor-Szféra Plusz Programhoz."]
["Közösségi hatás egy összevont mutatószám, amely megmutatja, hogy az ügyfél milyen mértékben rendelkezik a Bank közösségi termékeivel illetve használja-e azokat (Segítő bankkártya, Közösségi betét), fizet-e becsületkasszás számlavezetési díjat, valamint részt vesz-e a Bank Közösségi Adományozási Programjában (KAP). A Közösségi hatásról részletesen és a mutató mindenkori értékéről a NetBankon keresztül tájékozódhat."]
["A Bank jogosult a Kedvezmény feltételeit a hitel teljes futamideje alatt ellenőrizni, és amennyiben a Kedvezmény feltétele nem teljesül, a Bank jogosult a következő törlesztési esedékességtől a hátralévő teljes futamidőre a Kedvezményt megvonni."]
["Felhívjuk figyelmét, hogy az ebben a dokumentumban ismertetett hitelfeltételek (a kamatlábat is beleértve) változhatnak, azaz a kamatfelár-kedvezmény/kamatkedvezmény megszűnhet, amennyiben Ön nem tesz eleget a kamatfelár- kedvezmény/kamatkedvezmény alapjául szolgáló feltételekhez kapcsolódó kötelezettségeknek."]
[]
[]
[]
[]
[]
["Egyéni vagyonbiztosítás:  A Bank előírhatja a kölcsön fedezetéül szolgáló ingatlan(ok)ra egyéni vagyonbiztosítás meglétét. Ebben az esetben a vagyonbiztosítást a fedezeti ingatlanokra legalább tűz- és elemi kár kockázatokra kiterjedően kell megkötni és a biztosítási összeg minimálisan az ingatlan telekár nélkül számított forgalmi értékével, és legalább a kölcsön összegével kell, hogy megegyezzen. A megkötött vagyonbiztosítást a kölcsön és járulékai erejéig a Bank javára szóló hitelbiztosítéki záradékkal kell ellátni, és a kölcsön teljes futamideje alatt fent kell tartani. A biztosítási díj az Ön által választott biztosítótársaság díjszabásától függ."]
["Csoportos vagyonbiztosítás: A használatbavételi engedéllyel rendelkező fedezeti lakóingatlan a Bank által megkötött, csoportos vagyonbiztosítással rendelkezik, amelynek szerződője és kedvezményezettje a Bank. Azonban ha az ingatlan helyreállítható, akkor a biztosítási összeg erre használható fel. A csoportos vagyonbiztosítási fedezetbe való bevonás díjmentes, a Bank minden esetben átvállalja a biztosítás díját."]
["Hitelfedezeti (kockázati) életbiztosítás: A Bank egyéni döntésben előírhatja az Adós személyére a hitelfedezeti (kockázati) életbiztosítás megkötését. A biztosításnak az Adós bármely okú (betegségből, balesetből) eredő elhalálozása esetén is biztosítási szolgáltatást kell nyújtania. A biztosítási összegnek el kell érnie a szerződött kölcsönösszeget, továbbá a biztosítást a szerződés teljes futamideje alatt fent kell tartani. A biztosítási díj az Ön által választott biztosítótársaság díjszabásától függ."]
["Felhívjuk figyelmét, hogy ha később eláll a hitelhez kapcsolódó bármely kapcsolódó szolgáltatás igénybevételétől, azaz megszünteti Bank által vezetett fizetési számláját, a vagyonbiztosítását, vagy adott esetben életbiztosítását, az a kölcsönszerződés felmondását eredményezheti."]
[" 8. Előtörlesztés"]
["Ön jogosult a hitel részleges vagy teljes előtörlesztésére. Az előtörlesztés tervezett napja előtt legalább 15 banki munkanappal megelőzően írásban, az erre szolgáló nyomtatvány kitöltésével kell jeleznie a Bank felé előtörlesztési szándékát. Az előtörlesztés elszámolása – függetlenül az utalás napjától – csak a törlesztésre megjelölt napon történhet. \nJelzáloghitel-szerződések előtörlesztése esetén a Bank jogosult az előtörlesztéshez közvetlenül kapcsolódó, esetlegesen felmerült, méltányos költségeinek megtérítésére. \nAz előtörlesztés költsége az előtörlesztett összeg 1 százaléka. A Bank nem számítja fel az előtörlesztés költségét a kölcsön biztosítékául szolgáló hitelfedezeti életbiztosításból, vagy vagyonbiztosításból, vagy lakás-takarékpénztári megtakarításból teljesített teljes vagy részleges előtörlesztés esetén."]
[" 9. Rugalmas elemek"]
["Önnek lehetősége van ezt a hitelt más ingatlanra átvinni, azaz fedezetet cserélni. \nA fedezetcsere minden esetben szerződésmódosítással jár és csak abban az esetben lehetséges, ha a felajánlott újabb ingatlan megfelel a Bank által az ingatlannal szemben támasztott követelményeknek, továbbá biztosítja a hitel megfelelő fedezettségét. A fedezetcsere engedélyezéséről a Bank minden esetben egyedileg dönt.\nFedezetcsere esetén a mindenkor hatályos Hirdetmény szerinti értékbecslési költséget az értékbecslőnek és szerződésmódosítási díjat a Bank felé kell megfizetnie, illetve a szerződésmódosítás közjegyzői okiratba foglalását is előírja a Bank. A mindenkori közjegyzői díjszabás szerinti közjegyzői díjat a közjegyző felé kell megfizetnie. Ezeken túlmenően számolnia kell az ingatlan-nyilvántartás eljárás igazgatás szolgáltatási díjaival, úgy mint önálló zálogjog bejegyzésének díja, tulajdoni lap másolat díja. \nÖnnek nincs lehetősége ezt a hitelt más hitelezőhöz átvinni. "]
[" 10. A fogyasztó egyéb jogai"]
["15 nap gondolkodási idő áll a rendelkezésére a hitel felvételéről szóló döntéshez. Miután kézhez kapta a hitelszerződés tervezetét a Banktól, csak 3 nap eltelte után fogadhatja el az ajánlatot."]
[" 11. Panaszok"]
["Amennyiben panasza van, kérjük, vegye fel a kapcsolatot.\nPostai úton: \nMagNet Bank Zrt. Call Center Osztály (Minőségbiztosítás)\n1376 Budapest, 62., Pf.: 86.\nTelefax: 06-1-428-8889\nTelefonszám: 06-1-428-8888\nE-mail cím: info@magnetbank.hu\n\nAmennyiben a panasza helyben nem rendeződik az Ön számára kielégítően, a következő szervezetekhez is fordulhat: Magyar Nemzeti Bank, Pénzügyi Békéltető Testület, vagy kapcsolatba léphet a FIN-NET hálózattal, amelytől elkérheti az Ön országában ezzel egyenértékű szerv adatait."]
[" 12. A hitelhez kapcsolódó kötelezettségeknek való nem megfelelés következményei a fogyasztóra nézve"]
["A kamatkedvezményre jogosító feltételek nem teljesítése esetén:\nA Bank jogosult a kamatfelár kedvezmény / kamatkedvezmény feltételeit a hitel teljes futamideje alatt ellenőrizni, és amennyiben a kedvezmény feltétele nem teljesül, a Bank jogosult az Önnek írt erről szóló értesítése keltét követő első  törlesztési esedékességtől a hátralévő teljes futamidőre a kamatfelár kedvezményt / kamatkedvezményt megvonni."]
["A kölcsönszerződés alapján fennálló tartozás nem fizetése esetén:\nAmennyiben Ön nem tudja kölcsönszerződésnek megfelelően teljesíteni a fizetési kötelezettségét, vállalnia kell a hátralékos tartozás miatt felszámításra kerülő költségeket, valamint a hátralékhoz kapcsolódó esetleges eseményeket, melyek az alábbiak lehetnek:\n• késedelmi kamat felszámítása\nA Bank az egyes törlesztő részletek késedelmes teljesítése esetén (mind a meg nem fizetett tőketartozás után, mind a meg nem fizetett ügyleti kamat után), azok esedékessé válásától számítottan az ügyleti kamaton felül a késedelem időtartamára késedelmi kamatot is jogosult felszámítani. \n• fizetési felszólítások a hátralékossági szint mértékétől függően: (sms, telefon, levél, személyes megkeresés), ezek után az alábbi - nem szerződésszerű teljesítéshez kapcsolódó - díjak kerülnek felszámításra: késedelem miatti SMS felszólítás díja, késedelem miatti felszólító levél díja, és késedelem miatti személyes megkeresés díja, amelyek mértékét és esedékességét a Hirdetmény tartalmazza.\n• hátralékos tartozás adatainak rögzítése a Központi Hitel Információs (KHR) rendszerben\nAmennyiben a lejárt és meg nem fizetett tartozás mértéke meghaladja a késedelembe esés időpontjában érvényes legkisebb összegű havi minimálbér összegét és ezen minimálbérösszeget meghaladó fizetési késedelem folyamatosan meghaladja a 90 napot, a Bank - a központi hitelinformációs rendszerről szóló 2011. évi CXXII. törvény alapján - az Adós adatait haladéktalanul továbbítja a Központi Hitelinformációs Rendszer (KHR) üzemeltetője (BISz Zrt.) felé."]
["• felmondás\nAzokban az esetekben, amikor Banknak nem sikerül az Adóssal együttműködnie (az Adós nem mutat fizetési hajlandóságot, nem veszi fel a kapcsolatot a Bankkal), úgy a Bank nem tud lehetőséget adni áthidaló megoldás biztosítására, fizetéskönnyítésre, szerződésmódosításra. Így kerülhet sor a követelés jogi úton történő érvényesítésére. A fizetési felszólítás kézhezvételét követően, amennyiben az abban meghatározott teljesítési határidőig a lejárt tartozás nem kerül megfizetésre, együttműködési és fizetési hajlandóság hiányában a kölcsönszerződés felmondásra kerülhet. A felmondás következtében a követelés egyösszegben esedékessé válik.\n• végrehajtási eljárás indítása\nA kölcsönszerződés felmondása után végrehajtási eljárás indul, melynek keretében a fedezetként bevont ingatlan értékesítésre kerülhet. Amennyiben a biztosítéki ingatlan értékesítéséből befolyt összeg nem fedezi a hitel teljes tartozását, további fizetési kötelezettsége maradhat fenn."]
["Egyéni vagyonbiztosítással és adott esetben életbiztosítással kapcsolatos kötelezettségek megszegése esetén: Ha Ön nem fizeti meg, vagy csak részben fizeti meg a kölcsönszerződés alapján a Bank által adott esetben előírt egyéni vagyonbiztosítás vagy adott esetben az életbiztosítás díját, vagy e biztosítási szerződések valamely lényeges elemét (pl. kockázati kör, biztosítási összeg) a Bank számára hátrányos módon megváltoztatja, a Bank felmondhatja a kölcsönszerződését.\n\nAmennyiben nehézségei támadnak a havi törlesztőrészletek fizetésével kapcsolatban, kérjük, mielőbb keressen meg minket, hogy megfelelő megoldást találjunk a problémára.\nA részletfizetések elmaradása esetén otthona végső esetben végrehajtás alá kerülhet."]
["13. További tájékoztatás"]
["Tájékoztatjuk, hogy kölcsön jóváhagyását követően, de még a kölcsönszerződés megkötése előtt –  legalább  3 nappal - a Bank az Ön rendelkezésére bocsátja a kölcsönszerződés tervezetét a kölcsönkérelmi nyomtatványon Ön által megjelölt átvételi módon."]
[" 14. Felügyelet"]
[" A hitelező a Magyar Nemzeti Bank, http://www.mnb.hu/ felügyelet alá tartozik."]
[]
["Alulírott igazolom, hogy a kérelem tárgyát képező hiteltermékkel kapcsolatban a 2009. évi CLXII. törvény szerint tájékoztatást teljes körűen megkaptam és jelen tájékoztatás egy példányát a szerződéskötést megelőzően átvettem és megismertem."]
["Név: "]
["Lakcím: "]
["Személyi igazolvány: "]
[]
["Kelt: Budapest, 2019.05.31"]
[]
[]
[null,null,null,null,null,null,null,null,null,null,null,"Aláírás"]

{"sheet":"IndikatívOTK","index":6,"n_rows":157,"n_cols":17,"rows_kept":157,"cut":false,"hidden":true,"merged":[[41,4,41,7],[23,12,23,14],[25,11,25,13],[109,14,109,15],[110,14,110,15],[111,14,111,15],[54,1,54,19],[56,1,56,19],[57,1,57,19],[59,0,59,19],[51,1,51,19],[43,6,43,8],[44,1,44,19],[45,7,45,9],[46,1,46,19],[50,1,50,19],[68,14,68,15],[69,14,69,15],[70,14,70,15],[71,14,71,15],[72,14,72,15],[73,14,73,15],[74,14,74,15],[75,14,75,15],[66,0,66,19],[67,0,67,19],[61,4,61,5],[62,0,62,19],[63,0,63,2],[64,0,64,19],[65,0,65,19],[68,0,68,2],[70,0,70,2],[68,16,68,19],[69,16,69,19],[70,16,70,19],[68,6,68,7],[69,6,69,7],[70,6,70,7],[68,11,68,13],[69,11,69,13],[70,11,70,13],[69,0,69,2],[69,3,69,5],[70,3,70,5],[71,0,71,2],[73,0,73,2],[26,0,26,19],[27,9,27,11],[14,4,14,7],[13,4,13,7],[141,0,141,19],[142,0,142,19],[111,0,111,2],[134,0,134,19],[136,0,136,19],[137,0,137,19],[127,0,127,19],[128,0,128,19],[129,0,129,19],[130,0,130,19],[126,0,126,19],[120,0,120,19],[121,0,121,19],[122,0,122,19],[123,0,123,19],[124,0,124,19],[125,0,125,19],[75,3,75,5],[118,0,118,19],[119,0,119,19],[112,0,112,3],[112,4,112,7],[112,8,112,11],[108,0,108,2],[114,0,114,19],[110,0,110,2],[109,0,109,2],[115,0,115,19],[116,0,116,19],[112,16,112,19],[110,6,110,7],[112,12,112,15],[111,8,111,10],[108,14,108,15],[108,3,108,5],[109,3,109,5],[110,3,110,5],[108,6,108,7],[109,6,109,7],[111,16,111,19],[111,11,111,13],[117,0,117,19],[107,0,107,2],[107,14,107,15],[107,3,107,5],[107,6,107,7],[107,8,107,10],[106,0,106,2],[105,0,105,2],[105,14,105,15],[106,14,106,15],[105,3,105,5],[106,3,106,5],[105,6,105,7],[106,6,106,7],[105,8,105,10],[106,8,106,10],[105,11,105,13],[106,11,106,13],[101,0,101,2],[101,14,101,15],[102,14,102,15],[101,3,101,5],[102,3,102,5],[101,6,101,7],[102,6,102,7],[101,8,101,10],[102,8,102,10],[101,11,101,13],[104,0,104,2],[103,0,103,2],[103,14,103,15],[104,14,104,15],[103,3,103,5],[104,3,104,5],[103,6,103,7],[104,6,104,7],[102,0,102,2],[103,8,103,10],[104,8,104,10],[103,11,103,13],[100,0,100,2],[99,0,99,2],[99,14,99,15],[100,14,100,15],[98,0,98,2],[97,0,97,2],[97,14,97,15],[98,14,98,15],[97,3,97,5],[98,3,98,5],[97,6,97,7],[98,6,98,7],[97,8,97,10],[98,8,98,10],[97,11,97,13],[98,11,98,13],[99,3,99,5],[100,3,100,5],[99,6,99,7],[100,6,100,7],[96,0,96,2],[95,0,95,2],[95,14,95,15],[96,14,96,15],[95,3,95,5],[96,3,96,5],[95,6,95,7],[96,6,96,7],[95,8,95,10],[96,8,96,10],[95,11,95,13],[96,11,96,13],[94,6,94,7],[93,8,93,10],[94,8,94,10],[93,11,93,13],[94,11,94,13],[88,0,88,2],[92,3,92,5],[92,0,92,2],[91,0,91,2],[91,6,91,7],[92,6,92,7],[91,8,91,10],[92,8,92,10],[94,0,94,2],[93,0,93,2],[93,3,93,5],[94,3,94,5],[93,6,93,7],[88,6,88,7],[89,6,89,7],[87,0,87,2],[91,3,91,5],[88,14,88,15],[87,14,87,15],[88,11,88,13],[87,16,87,19],[88,16,88,19],[90,0,90,2],[89,0,89,2],[89,14,89,15],[90,14,90,15],[90,6,90,7],[89,11,89,13],[90,11,90,13],[89,16,89,19],[90,16,90,19],[87,3,87,5],[88,3,88,5],[89,3,89,5],[90,3,90,5],[90,8,90,10],[91,16,91,19],[91,14,91,15],[87,6,87,7],[83,14,83,15],[81,3,81,5],[82,3,82,5],[86,0,86,2],[85,0,85,2],[84,0,84,2],[84,14,84,15],[85,14,85,15],[86,14,86,15],[84,3,84,5],[85,3,85,5],[86,3,86,5],[81,8,81,10],[82,8,82,10],[83,8,83,10],[84,8,84,10],[85,8,85,10],[86,8,86,10],[83,3,83,5],[82,0,82,2],[81,0,81,2],[81,14,81,15],[82,14,82,15],[81,6,81,7],[80,14,80,15],[78,3,78,5],[79,3,79,5],[80,3,80,5],[78,8,78,10],[79,8,79,10],[80,8,80,10],[80,6,80,7],[80,11,80,13],[71,3,71,5],[72,3,72,5],[73,3,73,5],[74,3,74,5],[68,8,68,10],[69,8,69,10],[70,8,70,10],[71,8,71,10],[72,8,72,10],[73,8,73,10],[74,8,74,10],[71,6,71,7],[72,6,72,7],[73,6,73,7],[156,11,156,17],[18,5,18,6],[19,0,19,19],[20,6,20,7],[22,7,22,10],[23,4,23,6],[24,0,24,19],[148,0,148,19],[155,11,155,17],[138,0,138,19],[139,0,139,19],[140,0,140,19],[143,0,143,19],[144,0,144,19],[145,0,145,19],[131,0,131,19],[132,0,132,19],[133,0,133,19],[74,0,74,2],[111,6,111,7],[77,0,77,2],[77,14,77,15],[72,0,72,2],[75,8,75,10],[0,0,0,19],[2,0,2,19],[6,0,6,19],[135,0,135,19],[16,0,16,19],[17,0,17,19],[7,0,7,19],[8,0,8,19],[9,0,9,19],[10,0,10,19],[11,0,11,19],[12,0,12,19],[40,0,40,19],[31,0,31,19],[32,6,32,7],[33,0,33,19],[34,0,34,19],[21,0,21,19],[30,0,30,19],[86,11,86,13],[111,3,111,5],[29,0,29,19],[76,14,76,15],[68,3,68,5],[84,11,84,13],[80,0,80,2],[79,0,79,2],[78,0,78,2],[83,0,83,2],[74,6,74,7],[75,6,75,7],[76,6,76,7],[77,6,77,7],[78,6,78,7],[79,6,79,7],[82,6,82,7],[83,6,83,7],[84,6,84,7],[76,8,76,10],[77,8,77,10],[76,3,76,5],[77,3,77,5],[76,0,76,2],[75,0,75,2],[81,11,81,13],[82,11,82,13],[83,11,83,13],[77,11,77,13],[85,6,85,7],[86,6,86,7],[85,11,85,13],[110,16,110,19],[107,11,107,13],[108,11,108,13],[109,11,109,13],[107,16,107,19],[108,16,108,19],[109,16,109,19],[110,11,110,13],[99,11,99,13],[100,11,100,13],[92,14,92,15],[93,14,93,15],[94,14,94,15],[102,11,102,13],[104,11,104,13],[99,16,99,19],[100,16,100,19],[101,16,101,19],[102,16,102,19],[108,8,108,10],[109,8,109,10],[110,8,110,10],[87,11,87,13],[87,8,87,10],[88,8,88,10],[89,8,89,10],[91,11,91,13],[92,11,92,13],[99,8,99,10],[100,8,100,10],[96,16,96,19],[97,16,97,19],[98,16,98,19],[103,16,103,19],[104,16,104,19],[105,16,105,19],[106,16,106,19],[71,16,71,19],[72,16,72,19],[73,16,73,19],[74,16,74,19],[75,16,75,19],[76,16,76,19],[80,16,80,19],[81,16,81,19],[82,16,82,19],[83,16,83,19],[84,16,84,19],[95,16,95,19],[85,16,85,19],[86,16,86,19],[92,16,92,19],[93,16,93,19],[94,16,94,19],[71,11,71,13],[72,11,72,13],[73,11,73,13],[74,11,74,13],[75,11,75,13],[76,11,76,13],[77,16,77,19],[78,16,78,19],[79,16,79,19],[78,11,78,13],[79,11,79,13],[78,14,78,15],[79,14,79,15]]}
["Bevezető szöveg"]
["Ez a dokumentum "]
["Ez a dokumentum az Ön által ezidáig megadott adatok és a jelenlegi pénzügyi piaci feltételek alapján készült."]
["Az alábbi tájékoztatás "]
["Ezt követően a piaci feltételek függvényében változhat."]
["Ez a dokumentum nem kötelezi MagNet Bank Zrt.-t arra, hogy hitelt nyújtson Önnek."]
["1. Hitelező"]
["Hitelező neve: MagNet Magyar Közösségi Bank Zrt."]
["Telefonszám: 06-1-428-8888"]
["Levelezési cím: 1376 Budapest 62. Pf. 86."]
["E-mail cím: info@magnetbank.hu"]
["Internetcím: www.magnetbank.hu "]
["2. A hitel fő jellemzői"]
["A hitel összege: ",null,null,null,null,null,null,null,"A hitel devizaneme: HUF (magyar forint)"]
["A hitel futamideje: "]
["A hitel típusa:",null,null,null,"MagNet CSOK + Lakáshitel"]
["A kölcsön visszafizetése annuitásos módon történik. Az annuitásos törlesztőrészlet az otthonteremtési kamattámogatással csökkentett mértékű ügyleti kamatláb (nettó kamatláb) alapul vételével kerül meghatározásra. A szerződésszerű teljesítés esetén, az Adós a nettó kamatlábbal kiszámolt annuitásos - a teljes futamidő alatt azonos összegű - törlesztőrészletet köteles fizetni. Az annuitásos törlesztőrészlet hitelkamatot és tőkét is tartalmaz, azonban a havonta fizetendő részletben eltérő a kamat és a tőke aránya. A törlesztőrészleten belül - változatlan ügyleti kamatlábat feltételezve - a futamidő elején magasabb a kamat, később pedig a tőke aránya. "]
["A Bank a hitel kamatát a 16/2016. (II.10.) és a 17/2016 (II.10) Korm. Rendeletek által rögzített állampapír referencia hozamhoz kötötten határozza meg a kölcsön teljes futamideje alatt, amely megegyezik a kamattámogatás időtartamával. Kamatperiódus: 5 év\nÜgyleti kamat mértéke = az ÁKK Zrt. által havi rendszerességgel közzétett (www.akk.hu), a közzétételt megelőző három naptári hónapban tartott 5 éves névleges futamidejű államkötvény aukcióin kialakult átlaghozamok adott aukciókon elfogadott mennyiségekkel súlyozott számtani átlaga 130 százalékának 3 százalékponttal növelt mértéke."]
["Ügyleti kamat mértéke:"]
["Kamattámogatás mértéke: az ügyleti kamat fentiek szerint meghatározott mértékének 3 százalékponttal csökkentett mértéke (5 éves ÁKKH 130%-a)."]
["Kamattámogatás mértéke:"]
["A támogatott személy a támogatás időszakában kamattámogatással csökkentett mértékű ügyleti kamatot fizet.\nÜgyfél által fizetendő kamat: fix 3%.\nLejárt tőketartozás esetén kamattámogatás nem vehető igénybe. Lejárt tőketartozás: a kölcsönszerződés felmondása miatt esedékessé vált tőketartozás, valamint a fel nem mondott kölcsönszerződésből eredő lejárt tőketartozás, amelynek törlesztési késedelme a 30 napot meghaladja.\nA Bank a kölcsön ügyleti kamatának egyoldalú módosítására nem jogosult. A Bank által - a kamatperiódus fordulónapján érvényes referenciahozam alapján - érvényesített ügyleti kamat módosítása nem minősül egyoldalú kamatemelésnek."]
["Az Ön által fizetendő teljes összeg:"]
["Ez azt jelenti, hogy ",null,null,null,null,null,null,"-ért, amelyet hitelként felvesz,",null,null,null,null,null,null,null,"-ot kell visszafizetnie."]
["Felhívjuk szíves figyelmét, a kölcsön biztosítéka minden esetben magánszemély tulajdonában álló, Magyarország területén fekvő, önállóan forgalomképes ingatlanon alapított önálló zálogjog."]
["Ennek a tájékoztatásnak az elkészítéséhez az ingatlan értékét ",null,null,null,null,null,null,null,null,null,null,null,null,null,"-nak tekintettük. "]
["A maximálisan igénybe vehető hitelösszeg az ingatlan forgalmi értékének 80%-a lehet, amely azt jelenti, hogy az igénybe vehető hitel "]
["maximális összege a biztosíték értéke alapján: "]
["Kérem, vegye figyelembe, hogy ennél a terméknél a maximális kölcsönösszeg 15 000 000 Ft lehet. "]
["Az ingatlan értékét a Bank által elfogadott külső értékbecslő vállalkozás állapítja meg, és az értékbecslő által megállapított ingatlanérték eltérhet az ingatlan fent megadott értékétől."]
["3. Kamat és egyéb költségek"]
["A teljes hiteldíj mutató (THM) a hitel teljes éves díját mutatja meg százalékban kifejezve. A THM a különböző ajánlatok összehasonlítását szolgálja."]
["Az Ön hitelére érvényes THM "]
["Tájékoztatjuk, hogy a bemutatott THM azzal a feltételezéssel került kiszámításra, hogy  Ön a kölcsönszerződésnek megfelelően teljesíti a szerződésben vállalt kötelezettségeit, így kamattámogatásra jogosult a teljes futamidő során, ebből következően az Ön által fizetendő hitelkamat a kölcsönszerződés teljes időtartama alatt rögzített szinten marad."]
["A feltüntetett THM meghatározása az aktuális feltételek, illetve a hatályos jogszabályok figyelembevételével történt. A feltételek változása esetén a THM mértéke módosulhat. A THM-mutató értéke nem tükrözi a változó kamatozású hitelek kamatkockázatát. A hitel felvételéhez a fedezetül bevont ingatlanra vonatkozóan egyéni vagyonbiztosítás megkötése, vagy megléte szükséges lehet."]
["A THM az alábbiakat tartalmazza:"]
["Kamatláb "]
["Ügyfél által fizetendő kamat (évi): 3%"]
[]
["A THM egyéb összetevői:"]
["Egyszer fizetendő díjak, költségek:"]
[null,"Folyósítási díj: "]
[null,"Egyszeri díj, mely a kölcsön folyósításakor, a folyósított kölcsönösszeg után fizetendő. "]
[null,"Értékbecslés költsége: "]
[null,"A helyszíni szemle során esedékes, és közvetlenül az értékbecslőnek fizetendő. Abban az esetben sem jár vissza, ha az igénylés nem kerül jóváhagyásra. "]
[null,"Helyszíni szemle költsége: "]
[null,"Folyósítást megelőzően annak ellenőrzése, hogy az ingatlan műszaki állapotára tekintettel a lakhatási igények kielégítésére alkalmas (amennyiben a megvásárolni kívánt lakás a kérelem benyújtásának időpontjában nem rendelkezik használatbavételi engedéllyel)."]
[null,"Takarnetről lekért, vagy a Földhivatal által kiállított hiteles tulajdoni lap másolatok díja:"]
[null,"Térképmásolat TAKARNET-en keresztüli lekérdezésének költsége:"]
[null,"Fedezettel kapcsolatos ügyintézés költsége:",null,null,null,null,null,null,null,null,null,null,null,null,null,null,0]
[null,"Ingatlanonként fizetendő fix díj, ha a biztosítéki jogok bejegyzéséről a Bank intézkedik."]
[null,"Az önálló zálogjog bejegyzéséért díjat kell fizetnie. Díj összege: 12 600 Ft. (Az önálló zálogjog ingatlan-nyilvántartásban történő bejegyzése, valamint a bejegyzés módosítása iránti eljárás jogszabályban meghatározott díja.)"]
["Rendszeresen fizetendő költségek:"]
[null,"Rendelkezésre tartási díj (kizárólag új lakás vásárlás esetén): évi 0,50%"]
[null,"A kölcsönszerződésben meghatározott, de még ki nem folyósított kölcsön(rész) után a rendelkezésre tartási időszakban fizetendő díj. "]
["Az alábbi költségek nem ismertek a hitelező számára, és így azokat a THM nem foglalja magában: "]
[null,"Egyéni vagyonbiztosítás díja:  A Bank döntésben előírhatja a kölcsön fedezetéül szolgáló ingatlan(ok)ra az egyéni vagyonbiztosítás meglétét. Ebben az esetben a biztosítást, a teljes futamidő alatt fent kell tartani! Az ingatlanra megkötött egyéni vagyonbiztosítás után fizetendő biztosítási díjat a biztosítók egyedi díjszabásuk szerint határozzák meg. A fogyasztó szabadon eldöntheti, hogy bármely magyarországi biztosítótársaságból választva mely biztosítótársaságnál köti meg a biztosításra vonatkozó szerződést. "]
[null,"Hitelfedezeti (kockázati) életbiztosítás díja: A Bank előírhatja az Adós személyére a hitelfedezeti (kockázati) életbiztosítás megkötését. Az életbiztosítás díját a teljes futamidő alatt az Adósnak kell fizetnie. A fogyasztó szabadon eldöntheti, hogy bármely magyarországi biztosítótársaságból választva mely biztosítótársaságnál köti meg a biztosításra vonatkozó szerződést."]
["Kérjük, tájékozódjon az ehhez a hitelhez kapcsolódó minden egyéb illetékről és költségről."]
["4. A törlesztések gyakorisága és száma"]
["A törlesztések gyakorisága: havi"]
["A törlesztések száma: ",null,null,null,null,null,null,"(folyósítás időpontjától függően a törlesztések száma csökkenhet)"]
["5. Az egyes törlesztőrészletek összege"]
[]
["Az itt feltüntetett törlesztőrészlet mindaddig érvényes, amíg Ön a kölcsönszerződésnek megfelelően teljesíti a szerződésben vállalt kötelezettségeit. Szerződésszerű teljesítés esetén a törlesztőrészlet összege a teljes futamidő alatt változatlan összegű.   Kérem vegye figyelembe, hogy lejárt tőketartozás esetén kamattámogatásra nem jogosult, és ebben az esetben a kamattámogatás nélküli hitelkamatot köteles fizetni.\nAz Ön jövedelme változhat. Kérjük, gondolja át, hogy a jövedelme csökkenése esetén is képes lesz-e törleszteni a havi részleteket."]
[]
["6. Szemléltető törlesztési táblázat"]
["Ebben a táblázatban a havonta fizetendő összeg látható.\nAz Adós által fizetendő törlesztőrészletek (A oszlop) az  adós által fizetendő kamat (D oszlop), és a fizetendő tőke (E oszlop) összegéből állnak. Szerződésszerű teljesítés esetén a jelzáloghitelhez kamattámogatás kapcsolódik (B oszlop). Abban az esetben ha az Adós kamattámogatásra nem jogosult, úgy az Adós által fizetendő törlesztőrészlet és kamattámogatás együttes összegét kell megfizetnie az Adósnak, amelyet a C oszlop tartalmaz. A fennmaradó tőke (F oszlop) az egyes törlesztőrészletek után még törlesztendő hitelösszeg."]
["A törlesztés ütemezése",null,null,"Adós által fiz. törlesztőrészlet összege \n(A) = (D) + (E )",null,null,"Kamat-támogatás összege (B)",null,"Törlesztőrészlet (adós által fiz. trészlet + kamattám. összege) (C)= (A)+(B)",null,null,"Törlesztő-részletenként fizetendő kamat (adós) (D)",null,null,"Törlesztő-részletenként fizetendő tőke (adós) (E )",null,"Az egyes törlesztőrészletek után fennmaradó tőke (F)"]
[1]
[2]
[3]
[4]
[5]
[6]
[7]
[8]
[9]
[10]
[11]
[12]
[1]
[2]
[3]
[4]
[5]
[6]
[7]
[8]
[9]
[10]
[11]
[12]
[13]
[14]
[15]
[16]
[17]
[18]
[19]
[20]
[21]
[22]
[23]
[24]
[25]
[26]
[27]
[28]
[29]
[30]
["Mindösszesen"]
[]
[]
["A táblázat az aktuális kondíciók figyelembe vételével készült, ezért az ismert összegeket vizuálisan megkülönböztetjük a feltételezettektől. A feltételezett adatokat dőlt betűvel tüntettük fel. "]
["A Bank minden ügyleti év fordulónapján törlesztési táblázat megküldésével tájékoztatást küld a fogyasztó részére díj, és költségmentesen. A Bank az éves egyenlegértesítő megküldésével tájékoztatja a fogyasztót az igénybe vett kamattámogatás összegéről."]
["A hitel kamatlába a hitel futamideje alatt változhat, az ügyleti kamatláb az első kamatperiódusra (5 év) érvényes."]
["Kérjük, vegye figyelembe, hogy a táblázat csak szemléltetésre szolgál, és a jelzálogkölcsön változó kamatozású (kamatperióduson belül fix), ebből fakadóan a táblázatban közölt értékek változhatnak."]
["7. További kötelezettségek"]
["A fogyasztónak a következő kötelezettségeket kell teljesítenie ahhoz, hogy az ebben a dokumentumban ismertetett feltételekkel juthasson hitelhez:"]
["A fogyasztónak és a kölcsönnek meg kell felelnie a 16/2016. (II.10.). Korm. Rendelet / 17/2016 (II.10) Korm. Rendelet  szerinti feltételeknek."]
["Tekintettel arra, hogy a kölcsön törlesztése csak MagNet Banknál vezetett fizetési számláról történhet, ezért Önnek legalább korlátozott rendeltetésű bankszámlával a hitelszerződés teljes időtartama alatt rendelkeznie kell, amelyet a Bank díj, és költségmentesen biztosít az Ön részére. Kérjük, vegye figyelembe, hogy erről a korlátozott rendeltetésű fizetési számláról kizárólag a kölcsön törlesztése történhet, egyéb megbízás nem adható a bankszámla terhére, és nem kapcsolódhat hozzá kiegészítő szolgáltatás, úgy mint bankkártya, NetBank stb. "]
["Amennyiben Ön a MagNet Bank pénzforgalmi szolgáltatásait is igénybe kívánja venni, úgy a Banknál lakossági bankszámlát (fizetési számlát) nyithat, és ebben az esetben erről a számláról történik a kölcsön törlesztése."]
["Egyéni vagyonbiztosítás:  A Bank előírhatja a kölcsön fedezetéül szolgáló ingatlan(ok)ra egyéni vagyonbiztosítás meglétét. Ebben az esetben a vagyonbiztosítást a fedezeti ingatlanokra legalább tűz- és elemi kár kockázatokra kiterjedően kell megkötni és a biztosítási összeg minimálisan az ingatlan telekár nélkül számított forgalmi értékével, és legalább a kölcsön összegével kell, hogy megegyezzen. A megkötött vagyonbiztosítást a kölcsön és járulékai erejéig a Bank javára szóló hitelbiztosítéki záradékkal kell ellátni, és a kölcsön teljes futamideje alatt fent kell tartani. A biztosítási díj az Ön által választott biztosítótársaság díjszabásától függ."]
["Csoportos vagyonbiztosítás: A használatbavételi engedéllyel rendelkező fedezeti lakóingatlan a Bank által, csoportos vagyonbiztosítással rendelkezik, amelynek szerződője és kedvezményezettje a Bank. A csoportos vagyonbiztosítási fedezetbe való bevonás díjmentes, a Bank minden esetben átvállalja a biztosítás díját. Ennek megléte azonban nem érinti az Adós azon kötelezettségét, hogy a kölcsönszerződés fennállásáig, kizárólag a Bank javára szóló hitelbiztosítéki záradékkal ellátott, egyéni vagyonbiztosítással kell rendelkeznie."]
["Hitelfedezeti (kockázati) életbiztosítás: A Bank egyéni döntésben előírhatja az Adós személyére a hitelfedezeti (kockázati) életbiztosítás megkötését. A biztosításnak az Adós bármely okú (betegségből, balesetből) eredő elhalálozása esetén is biztosítási szolgáltatást kell nyújtania. A biztosítási összegnek el kell érnie a szerződött kölcsönösszeget, továbbá a biztosítást a szerződés teljes futamideje alatt fent kell tartani. A biztosítási díj az Ön által választott biztosítótársaság díjszabásától függ."]
["Felhívjuk figyelmét, hogy ha később eláll a hitelhez kapcsolódó bármely kapcsolódó szolgáltatás igénybevételétől, azaz megszünteti Bank által vezetett fizetési számláját, a vagyonbiztosítását, vagy adott esetben életbiztosítását, az a kölcsönszerződés felmondását eredményezheti."]
[" 8. Előtörlesztés"]
["Ön jogosult a hitel részleges vagy teljes előtörlesztésére. Az előtörlesztés tervezett napja előtt legalább 15 banki munkanappal megelőzően írásban, az erre szolgáló nyomtatvány kitöltésével kell jeleznie a Bank felé előtörlesztési szándékát. Az előtörlesztés elszámolása – függetlenül az utalás napjától – csak a törlesztésre megjelölt napon történhet. \nJelzáloghitel-szerződések előtörlesztése esetén a Bank jogosult az előtörlesztéshez közvetlenül kapcsolódó, esetlegesen felmerült, méltányos költségeinek megtérítésére. Az érvényesített költségek összege nem haladhatja meg a Bank pénzügyi veszteségét és mértéke nem haladhatja meg az előtörlesztett összeg 1,5 százalékát. Jelzáloglevéllel finanszírozott kölcsönszerződés esetén, ha az előtörlesztés olyan időszakra esik, amikor a jelzáloghitel kamata rögzített vagy változó kamatú és az előtörlesztésre a kamatperióduson belül kerül sor, az érvényesített költségek mértéke nem haladhatja meg az előtörlesztett összeg 2 százalékát. Nem illeti meg a Bankot a költségtérítés, ha a részleges vagy teljes előtörlesztés visszafizetési biztosítékként kötött biztosítási szerződés alapján történik. "]
[" 9. Rugalmas elemek"]
["Önnek lehetősége van ezt a hitelt más ingatlanra átvinni, azaz fedezetet cserélni. A fedezetcserére abban az esetben van lehetőség, ha az megfelel a 16/2016. (II.10.) / 17/2016 (II.10) Korm. Rendeletben leírt feltételeknek.\nA fedezetcsere minden esetben szerződésmódosítással jár és csak abban az esetben lehetséges, ha a felajánlott újabb ingatlan megfelel a Bank által az ingatlannal szemben támasztott követelményeknek, továbbá biztosítja a hitel megfelelő fedezettségét. A fedezetcsere engedélyezéséről a Bank minden esetben egyedileg dönt.\nFedezetcsere esetén a mindenkor hatályos Hirdetmény szerinti értékbecslési költséget az értékbecslőnek és szerződésmódosítási díjat a Bank felé kell megfizetnie, illetve a szerződésmódosítás közjegyzői okiratba foglalását is előírja a Bank. A mindenkori közjegyzői díjszabás szerinti közjegyzői díjat a közjegyző felé kell megfizetnie. Ezeken túlmenően számolnia kell az ingatlan-nyilvántartás eljárás igazgatás szolgáltatási díjaival, úgy mint az önálló zálogjog bejegyzésének díja, tulajdoni lap másolat díja. \nÖnnek nincs lehetősége ezt a hitelt más hitelezőhöz átvinni. "]
[" 10. A fogyasztó egyéb jogai"]
["15 nap gondolkodási idő áll a rendelkezésére a hitel felvételéről szóló döntéshez. Miután kézhez kapta a hitelszerződés tervezetét a Banktól, csak 3 nap eltelte után fogadhatja el az ajánlatot."]
[" 11. Panaszok"]
["Amennyiben panasza van, kérjük, vegye fel a kapcsolatot.\nPostai úton: \nMagNet Bank Zrt. Call Center Osztály (Minőségbiztosítás)\n1376 Budapest, 62., Pf.: 86.\nTelefax: 06-1-428-8889\nTelefonszám: 06-1-428-8888\nE-mail cím: info@magnetbank.hu"]
["Amennyiben a panasza helyben nem rendeződik az Ön számára kielégítően, a következő szervezetekhez is fordulhat: Magyar Nemzeti Bank, Pénzügyi Békéltető Testület, vagy kapcsolatba léphet a FIN-NET hálózattal, amelytől elkérheti az Ön országában ezzel egyenértékű szerv adatait."]
[" 12. A hitelhez kapcsolódó kötelezettségeknek való nem megfelelés következményei a fogyasztóra nézve"]
["Amennyiben a kölcsön folyósítása kölcsönkérelem benyújtását követő hat hónapon belül a támogatott személynek (adósnak) felróható okból nem kezdődik meg, úgy az adós az otthonteremtési kamattámogatásra való jogosultságát elveszti. \nA kölcsönszerződés alapján fennálló tartozás nem fizetése esetén:\nAmennyiben Ön nem tudja kölcsönszerződésnek megfelelően teljesíteni a fizetési kötelezettségét, vállalnia kell a hátralékos tartozás miatt felszámításra kerülő költségeket, valamint a hátralékhoz kapcsolódó esetleges eseményeket, melyek az alábbiak lehetnek:\n• kamattámogatásra való jogosultság elvesztése\nLejárt tőketartozás esetén kamattámogatásra nem jogosult. Amennyiben lejárt tőketartozás áll fenn, a kamattámogatás nélküli havi törlesztőrészletet kell megfizetnie."]
["• késedelmi kamat felszámítása\nA Bank az egyes törlesztő részletek késedelmes teljesítése esetén (mind a meg nem fizetett tőketartozás után, mind a meg nem fizetett ügyleti kamat után), azok esedékessé válásától számítottan az ügyleti kamaton felül a késedelem időtartamára késedelmi kamatot is jogosult felszámítani. \n• fizetési felszólítások a hátralékossági szint mértékétől függően: (sms, telefon, levél, személyes megkeresés), ezek után az alábbi - nem szerződésszerű teljesítéshez kapcsolódó - díjak kerülnek felszámításra: késedelem miatti SMS felszólítás díja, késedelem miatti felszólító levél díja, és késedelem miatti személyes megkeresés díja, amelyek mértékét és esedékességét a Hirdetmény tartalmazza.\n• hátralékos tartozás adatainak rögzítése a Központi Hitel Információs (KHR) rendszerben\nAmennyiben a lejárt és meg nem fizetett tartozás mértéke meghaladja a késedelembe esés időpontjában érvényes legkisebb összegű havi minimálbér összegét és ezen minimálbérösszeget meghaladó fizetési késedelem folyamatosan meghaladja a 90 napot, a Bank - a központi hitelinformációs rendszerről szóló 2011. évi CXXII. törvény alapján - az Adós adatait haladéktalanul továbbítja a Központi Hitelinformációs Rendszer (KHR) üzemeltetője (BISz Zrt.) felé."]
["• felmondás\nAzokban az esetekben, amikor Banknak nem sikerül az Adóssal együttműködnie (az Adós nem mutat fizetési hajlandóságot, nem veszi fel a kapcsolatot a Bankkal), úgy a Bank nem tud lehetőséget adni áthidaló megoldás biztosítására, fizetéskönnyítésre, szerződésmódosításra. Így kerülhet sor a követelés jogi úton történő érvényesítésére. A fizetési felszólítás kézhezvételét követően, amennyiben az abban meghatározott teljesítési határidőig a lejárt tartozás nem kerül megfizetésre, együttműködési és fizetési hajlandóság hiányában a kölcsönszerződés felmondásra kerülhet. A felmondás következtében a követelés egyösszegben esedékessé válik. \n• végrehajtási eljárás indítása\nA kölcsönszerződés felmondása után végrehajtási eljárás indul, melynek keretében a fedezetként bevont ingatlan értékesítésre kerülhet. Amennyiben a biztosítéki ingatlan értékesítéséből befolyt összeg nem fedezi a hitel teljes tartozását, további fizetési kötelezettsége maradhat fenn."]
["Kamattámogatás jogosulatlan igénybe vétele: \nHa a járási hivatal vagy állami adóhatóság vizsgálata során azt állapítja meg, hogy az otthonteremtési kamattámogatás igénybevétele jogosulatlan, vagy a támogatott személy nem a tőle elvárható gondossággal járt el, és ezáltal érdekkörében felmerült ok miatt az igénybevétel szabálytalan, akkor a támogatott személy köteles a jogosulatlanul igénybe vett otthonteremtési kamattámogatás az igénybevétel napjától számított, a Ptk. szerinti késedelmi kamattal növelt összegét visszatéríteni."]
["Egyéni vagyonbiztosítással és adott esetben életbiztosítással kapcsolatos kötelezettségek megszegése esetén:\nHa Ön nem fizeti meg, vagy csak részben fizeti meg a kölcsönszerződés alapján a Bank által előírt egyéni vagyonbiztosítás vagy adott esetben az életbiztosítás díját, vagy e biztosítási szerződések valamely lényeges elemét (pl. kockázati kör, biztosítási összeg) a Bank számára hátrányos módon megváltoztatja, a Bank felmondhatja a kölcsönszerződését."]
["Amennyiben nehézségei támadnak a havi törlesztőrészletek fizetésével kapcsolatban, kérjük, mielőbb keressen meg minket, hogy megfelelő megoldást találjunk a problémára.\nA részletfizetések elmaradása esetén otthona végső esetben végrehajtás alá kerülhet."]
["13. További tájékoztatás"]
["Tájékoztatjuk, hogy kölcsön jóváhagyását követően, de még a kölcsönszerződés megkötése előtt – legalább 3 nappal - a Bank az Ön rendelkezésére bocsátja a kölcsönszerződés tervezetét a kölcsönkérelmi nyomtatványon Ön által megjelölt átvételi módon."]
[" 14. Felügyelet"]
[" A hitelező a Magyar Nemzeti Bank, http://www.mnb.hu/ felügyelet alá tartozik."]
[]
["Alulírott igazolom, hogy a kérelem tárgyát képező hiteltermékkel kapcsolatban a 2009. évi CLXII. törvény szerint tájékoztatást teljes körűen megkaptam és jelen tájékoztatás egy példányát a szerződéskötést megelőzően átvettem és megismertem."]
[]
[]
[]
[]
[]
[]
[]
[null,null,null,null,null,null,null,null,null,null,null,"Aláírás"]

{"sheet":"Induló lap","index":7,"n_rows":17,"n_cols":15,"rows_kept":17,"cut":false,"hidden":true,"merged":[]}
[]
[]
[]
[]
[]
[]
[]
[]
[]
[]
[]
[]
[]
[]
[]
[]
[null,null,null,null,null,null,null,null,null,null,null,null,null,null,"2020-03-07"]